Workbook

Sheet AER only (hidden)
B1: Data in these columns used for data validation and database purposes.
B2: Date last modified: | C2: 2017-01-16 | D2: added (Albury and Victora) for AGN
C3: 2016-10-17 | D3: updated TransGrid's correct legal name, corrected TasNetworks (T) to June financial year
C4: 2017-02-01 | D4: inserted Power and Water, added NRs (dms_FeederCat_1 and dms_FeederCat_2)
C5: 2017-03-03 | D5: inserted AEMO as a business | AB5: FOR ELECTRICITY BUSINESSES ONLY
C6: 2018-03-28 | D6: major changes to accommodate STPIS
C7: Template Version | D7: 5 | AB7: Feeder Types | AF7: TasNetworks (D) | AG7: MAIFI flag | AH7: Feeder Names
AB9: CBD | AC9: Urban | AD9: Short rural | AE9: long rural | AF9: EXTRA
B10: dms_TradingName_List | C10: dms_TradingNameFull_List | D10: dms_ABN_List | E10: dms_JurisdictionList | F10: dms_Sector_List | G10: dms_Segment_List | H10: dms_FormControl_List | I10: dms_RPT_List | J10: dms_RPTMonth_List | K10: dms_CRCPlength_List | L10: dms_FRCPlength_List | M10: dms_663_List | N10: dms_DeterminationRef_List | O10: dms_Addr1_List | P10: dms_Addr2_List | Q10: dms_Suburb_List | R10: dms_State_List | S10: dms_PostCode_List | T10: dms_PAddr1_List | U10: dms_PAddr2_List | V10: dms_PSuburb_List | W10: dms_PState_List | X10: dms_PPostCode_List | Y10: dms_ContactName1_List | Z10: dms_ContactPh1_List | AA10: dms_ContactEmail_List | AB10: dms_CBD_flag | AC10: dms_Urban_flag | AD10: dms_ShortRural_flag | AE10: dms_LongRural_flag | AF10: dms_FeederType_5_flag | AG10: dms_MAIFI_flag_List | AH10: dms_FeederName_1 | AI10: dms_FeederName_2 | AJ10: dms_FeederName_3 | AK10: dms_FeederName_4 | AL10: dms_FeederName_5 | AM10: dms_Public_Lighting_List | AN10: Column1
B11: ActewAGL Distribution | C11: ActewAGL Distribution | D11: 76670568688 | E11: ACT | F11: Electricity | G11: Distribution | H11: Revenue cap | I11: Financial | J11: June | K11: 5 | L11: 5 | M11: 5 | N11: 2014-19 Distribution Determination | O11: 40 Bunda Street | Q11: CANBERRA | R11: ACT | S11: 2600 | T11: GPO BOX 366 | V11: CANBERRA | W11: ACT | X11: 2601 | Y11: Robert Walker | Z11: 02 6248 3847 | AA11: robert.walker@actewagle.com.au | AB11: NO | AC11: YES | AD11: YES | AE11: NO | AF11: NO | AH11: CBD | AI11: Urban | AJ11: Short rural | AK11: Long rural | AM11: NO | AN11: ActewAGL Distribution
B12: ActewAGL Distribution (Tx Assets) | C12: ActewAGL Distribution (Tx Assets) | D12: 76670568688 | E12: ACT | F12: Electricity | G12: Distribution | H12: Revenue cap | I12: Financial | J12: June | K12: 5 | L12: 5 | M12: 5 | N12: distribution determination | O12: 40 Bunda Street | Q12: CANBERRA | R12: ACT | S12: 2600 | T12: GPO BOX 366 | V12: CANBERRA | W12: ACT | X12: 2601 | Y12: Robert Walker | Z12: 02 6248 3847 | AA12: robert.walker@actewagle.com.au | AB12: NO | AC12: YES | AD12: YES | AE12: NO | AF12: NO | AH12: CBD | AI12: Urban | AJ12: Short rural | AK12: Long rural | AM12: NO | AN12: ActewAGL Distribution (Tx Assets)
B13: ActewAGL Gas | C13: ActewAGL Gas | D13: 76670568688 | E13: ACT | F13: Gas | G13: Distribution | H13: Weighted average price cap | I13: Financial | J13: June | K13: 5 | L13: 5 | M13: x | O13: 40 Bunda Street | Q13: CANBERRA | R13: ACT | S13: 2600 | T13: GPO BOX 366 | V13: CANBERRA | W13: ACT | X13: 2601 | Y13: Philip Deamer | Z13: 02 6248 3438 | AA13: GasAAReview@actewagl.com.au | AB13: NO | AC13: NO | AD13: NO | AE13: NO | AF13: NO | AH13: CBD | AI13: Urban | AJ13: Short rural | AK13: Long rural | AM13: NO | AN13: ActewAGL Gas
B14: AEMO | C14: Australian Energy Market Operator Ltd | D14: 94072010327 | E14: Vic | F14: Electricity | G14: Transmission | H14: - | I14: Financial | J14: March | K14: 5 | L14: 5 | M14: x | N14: - | O14: Level 22 | P14: 530 Collins Street | Q14: MELBOURNE | R14: VIC | S14: 3000 | T14: GPO Box 2008 | V14: MELBOURNE | W14: VIC | X14: 3001 | AB14: NO | AC14: NO | AD14: NO | AE14: NO | AF14: NO | AH14: CBD | AI14: Urban | AJ14: Short rural | AK14: Long rural | AM14: NO | AN14: AEMO
B15: AGN (Albury and Victoria) | C15: Australian Gas Networks Limited (reporting data for Albury and Victoria) | D15: 19078551685 | E15: Vic | F15: Gas | G15: Distribution | H15: Weighted average price cap | I15: Calendar | J15: December | K15: 5 | L15: 5 | M15: x | O15: Level 6 | P15: 400 King William Street | Q15: ADELAIDE | R15: SA | S15: 5000 | T15: PO Box 6468 | U15: Halifax Street | V15: ADELAIDE | W15: SA | X15: 5000 | Y15: Craig de Laine | Z15: 08 8418 1129 | AA15: craig.delaine@agn.com.au | AB15: NO | AC15: NO | AD15: NO | AE15: NO | AF15: NO | AH15: CBD | AI15: Urban | AJ15: Short rural | AK15: Long rural | AM15: NO | AN15: AGN (Albury)
B16: AGN (Albury) | C16: Australian Gas Networks Limited (reporting data for Albury) | D16: 19078551685 | E16: Vic | F16: Gas | G16: Distribution | H16: Weighted average price cap | I16: Calendar | J16: December | K16: 5 | L16: 5 | M16: x | O16: Level 6 | P16: 400 King William Street | Q16: ADELAIDE | R16: SA | S16: 5000 | T16: PO Box 6468 | U16: Halifax Street | V16: ADELAIDE | W16: SA | X16: 5000 | Y16: Craig de Laine | Z16: 08 8418 1129 | AA16: craig.delaine@agn.com.au | AB16: NO | AC16: NO | AD16: NO | AE16: NO | AF16: NO | AH16: CBD | AI16: Urban | AJ16: Short rural | AK16: Long rural | AM16: NO
B17: AGN (SA) | C17: Australian Gas Networks Limited (reporting data for SA) | D17: 19078551685 | E17: SA | F17: Gas | G17: Distribution | H17: Weighted average price cap | I17: Financial | J17: June | K17: 5 | L17: 5 | M17: 5 | N17: distribution determination | O17: Level 6 | P17: 400 King William Street | Q17: ADELAIDE | R17: SA | S17: 5000 | T17: PO Box 6468 | U17: Halifax Street | V17: ADELAIDE | W17: SA | X17: 5000 | Y17: Craig de Laine | Z17: 08 8418 1129 | AA17: craig.delaine@agn.com.au | AB17: NO | AC17: NO | AD17: NO | AE17: NO | AF17: NO | AH17: CBD | AI17: Urban | AJ17: Short rural | AK17: Long rural | AM17: NO | AN17: AGN (SA)
B18: AGN (Victoria) | C18: Australian Gas Networks Limited (reporting data for Victoria) | D18: 19078551685 | E18: Vic | F18: Gas | G18: Distribution | H18: Weighted average price cap | I18: Calendar | J18: December | K18: 5 | L18: 5 | M18: x | O18: Level 6 | P18: 400 King William Street | Q18: ADELAIDE | R18: SA | S18: 5000 | T18: PO Box 6468 | U18: Halifax Street | V18: ADELAIDE | W18: SA | X18: 5000 | Y18: Craig de Laine | Z18: 08 8418 1129 | AA18: craig.delaine@agn.com.au | AB18: NO | AC18: NO | AD18: NO | AE18: NO | AF18: NO | AH18: CBD | AI18: Urban | AJ18: Short rural | AK18: Long rural | AM18: NO | AN18: AGN (Victoria)
B19: Amadeus | C19: APT Pipelines (NT) Pty Ltd | D19: 39009737393 | E19: NT | F19: Gas | G19: Transmission | H19: Weighted average price cap | I19: Financial | J19: June | K19: 5 | L19: 5 | M19: x | N19: n/a | O19: Level 19, HSBC Building | P19: 580 George Street | Q19: SYDNEY | R19: NSW | S19: 2000 | T19: Level 19, HSBC Building | U19: 580 George Street | V19: SYDNEY | W19: NSW | X19: 2000 | Y19: Alexandra Curran | Z19: 02 9275 0020 | AA19: alexandra.curran@apa.com.au | AB19: NO | AC19: NO | AD19: NO | AE19: NO | AF19: NO | AH19: CBD | AI19: Urban | AJ19: Short rural | AK19: Long rural | AM19: NO | AN19: Amadeus
B20: APA GasNet | C20: APA GasNet Australia (Operations) Pty Ltd | D20: 065083009 | E20: Vic | F20: Gas | G20: Transmission | H20: Weighted average price cap | I20: Calendar | J20: December | K20: 5 | L20: 5 | M20: x | O20: Level 19, HSBC Building | P20: 580 George Street | Q20: SYDNEY | R20: NSW | S20: 2000 | T20: PO Box R41 | V20: ROYAL EXCHANGE | W20: NSW | X20: 1225 | Y20: Alexandra Curran | Z20: 02 9275 0020 | AA20: alexandra.curran@apa.com.au | AB20: NO | AC20: NO | AD20: NO | AE20: NO | AF20: NO | AH20: CBD | AI20: Urban | AJ20: Short rural | AK20: Long rural | AM20: NO | AN20: APA GasNet
B21: Ausgrid | C21: Ausgrid | D21: 78508211731 | E21: NSW | F21: Electricity | G21: Distribution | H21: Revenue cap | I21: Financial | J21: June | K21: 5 | L21: 5 | M21: 5 | N21: 2014-19 Distribution Determination | O21: 570 George St | Q21: SYDNEY | R21: NSW | S21: 2000 | T21: GPO Box 4009 | V21: SYDNEY | W21: NSW | X21: 2001 | Y21: John Thomson | Z21: 02 9269 2312 | AA21: john.thomson@ausgrid.com.au | AB21: YES | AC21: YES | AD21: YES | AE21: YES | AF21: NO | AH21: CBD | AI21: Urban | AJ21: Short rural | AK21: Long rural | AM21: YES | AN21: Ausgrid
B22: Ausgrid (Tx Assets) | C22: Ausgrid (Tx Assets) | D22: 67505337385 | E22: NSW | F22: Electricity | G22: Distribution | H22: Revenue cap | I22: Financial | J22: June | K22: 5 | L22: 5 | M22: 5 | N22: distribution determination | O22: 570 George St | Q22: SYDNEY | R22: NSW | S22: 2000 | T22: GPO Box 4009 | V22: SYDNEY | W22: NSW | X22: 2001 | Y22: John Thomson | Z22: 02 9269 2312 | AA22: john.thomson@ausgrid.com.au | AB22: YES | AC22: YES | AD22: YES | AE22: YES | AF22: NO | AH22: CBD | AI22: Urban | AJ22: Short rural | AK22: Long rural | AM22: NO | AN22: Ausgrid (Tx Assets)
B23: AusNet (D) | C23: AusNet Electricity Services Pty Ltd | D23: 91064651118 | E23: Vic | F23: Electricity | G23: Distribution | H23: Revenue cap | I23: Calendar | J23: December | K23: 5 | L23: 5 | M23: 2 | N23: 2016-20 Distribution Determination | O23: Level 32 | P23: 2 Southbank Boulevard | Q23: SOUTHBANK | R23: Vic | S23: 3006 | T23: Locked Bag 14051 | V23: MELBOURNE CITY MAIL CENTRE | W23: VIC | X23: 8001 | Y23: please provide contact details | AB23: NO | AC23: YES | AD23: YES | AE23: YES | AF23: NO | AH23: CBD | AI23: Urban | AJ23: Short rural | AK23: Long rural | AM23: YES | AN23: AusNet (D)
B24: AusNet (Gas) | C24: AusNet Gas Services | D24: 086015036 | E24: Vic | F24: Gas | G24: Distribution | H24: Weighted average price cap | I24: Calendar | J24: December | K24: 5 | L24: 5 | M24: X | O24: Level 19, HSBC Building | P24: 580 George Street | Q24: SYDNEY | R24: NSW | S24: 2000 | T24: PO Box R41 | V24: ROYAL EXCHANGE | W24: NSW | X24: 1225 | Y24: Alexandra Curran | Z24: 02 9275 0020 | AA24: alexandra.curran@apa.com.au | AB24: NO | AC24: NO | AD24: NO | AE24: NO | AF24: NO | AH24: CBD | AI24: Urban | AJ24: Short rural | AK24: Long rural | AM24: NO | AN24: AusNet (Gas)
B25: AusNet (T) | C25: Ausnet Services (Transmission) Ltd | D25: 48116124362 | E25: Vic | F25: Electricity | G25: Transmission | H25: Revenue cap | I25: Financial | J25: March | K25: 5 | L25: 5 | M25: 2 | N25: transmission determination | O25: Level 32 | P25: 2 Southbank Boulevard | Q25: SOUTHBANK | R25: Vic | S25: 3006 | T25: Locked Bag 14051 | V25: MELBOURNE CITY MAIL CENTRE | W25: Vic | X25: 8001 | Y25: Clare Thompson | Z25: 03 9695 6670 | AA25: clare.e.thompson@ausnetservices.com.au | AB25: NO | AC25: NO | AD25: NO | AE25: NO | AF25: NO | AH25: CBD | AI25: Urban | AJ25: Short rural | AK25: Long rural | AM25: NO | AN25: AusNet (T)
B26: Australian Distribution Co. | C26: Australian Distribution Co. | D26: 11222333444 | E26: - | F26: Electricity | G26: Distribution | H26: Revenue cap | I26: Financial | J26: June | K26: 5 | L26: 5 | M26: 2 | N26: distribution determination | O26: 123 Straight Street | Q26: SYDNEY | R26: NSW | S26: 2000 | T26: PO Box 123 | V26: SYDNEY | W26: NSW | X26: 2000 | Y26: Bob Smith | Z26: 02 1234 5678 | AA26: bob@auselec.net.au | AB26: YES | AC26: YES | AD26: YES | AE26: YES | AF26: NO | AH26: CBD | AI26: Urban | AJ26: Short rural | AK26: Long rural | AM26: YES | AN26: Australian Distribution Co.
B27: Australian Distribution Co. (Vic) | C27: Australian Distribution Co. (Victoria) | D27: 11222333444 | E27: Vic | F27: Electricity | G27: Distribution | H27: Revenue cap | I27: Calendar | J27: December | K27: 5 | L27: 5 | M27: 2 | N27: distribution determination | O27: 123 Straight Street | Q27: MELBOURNE | R27: Vic | S27: 3000 | T27: PO Box 123 | V27: MELBOURNE | W27: VIC | X27: 3000 | Y27: Bob Smith | Z27: 02 1234 5678 | AA27: bob@auselec.net.au | AB27: NO | AC27: NO | AD27: NO | AE27: NO | AF27: NO | AH27: CBD | AI27: Urban | AJ27: Short rural | AK27: Long rural | AM27: YES | AN27: Australian Distribution Co. (Vic)
B28: Australian Distribution Co. (Gas) | C28: Australian Gas Distribution Co. | D28: 11222333444 | E28: NSW | F28: Gas | G28: Distribution | H28: Weighted average price cap | I28: Financial | J28: June | K28: 5 | L28: 5 | O28: 123 Straight Street | Q28: SYDNEY | R28: NSW | S28: 2000 | T28: PO Box 123 | V28: SYDNEY | W28: NSW | X28: 2000 | Y28: Bob Smith | Z28: 02 1234 5678 | AA28: bob@auselec.net.au | AB28: NO | AC28: NO | AD28: NO | AE28: NO | AF28: NO | AH28: CBD | AI28: Urban | AJ28: Short rural | AK28: Long rural | AM28: NO | AN28: Australian Distribution Co. (Vic)
B29: Australian Transmission Co. | C29: Australian Transmission Co. | D29: 11222333444 | E29: - | F29: Electricity | G29: Transmission | H29: Revenue cap | I29: Financial | J29: June | K29: 5 | L29: 5 | M29: 5 | N29: transmission determination | O29: 123 Straight Street | Q29: SYDNEY | R29: NSW | S29: 2000 | T29: PO Box 123 | V29: SYDNEY | W29: NSW | X29: 2000 | Y29: Bob Smith | Z29: 02 1234 5678 | AA29: bob@auselec.net.au | AB29: NO | AC29: NO | AD29: NO | AE29: NO | AF29: NO | AH29: CBD | AI29: Urban | AJ29: Short rural | AK29: Long rural | AM29: NO | AN29: Australian Transmission Co.
B30: Central Ranges Pipeline (D) | C30: Central Ranges Pipeline Pty Ltd | D30: 108218355 | E30: NSW | F30: Gas | G30: Distribution | H30: Weighted average price cap | I30: Financial | J30: June | K30: 15 | L30: 5 | M30: 5 | N30: distribution determination | O30: Level 19 | P30: 580 George Street | Q30: SYDNEY | R30: NSW | S30: 2000 | T30: PO Box R41 | V30: ROYAL EXCHANGE | W30: NSW | X30: 1225 | Y30: Scott Young | Z30: 02 9275 0031 | AA30: scott.young@apa.com.au | AB30: NO | AC30: NO | AD30: NO | AE30: NO | AF30: NO | AH30: CBD | AI30: Urban | AJ30: Short rural | AK30: Long rural | AM30: NO
B31: Central Ranges Pipeline (T) | C31: Central Ranges Pipeline Pty Ltd | D31: 108218355 | E31: NSW | F31: Gas | G31: Distribution | H31: Weighted average price cap | I31: Financial | J31: June | K31: 14 | L31: 5 | M31: 5 | N31: transmission determination | O31: Level 19 | P31: 580 George Street | Q31: SYDNEY | R31: NSW | S31: 2000 | T31: PO Box R41 | V31: ROYAL EXCHANGE | W31: NSW | X31: 1225 | Y31: Scott Young | Z31: 02 9275 0031 | AA31: scott.young@apa.com.au | AB31: NO | AC31: NO | AD31: NO | AE31: NO | AF31: NO | AH31: CBD | AI31: Urban | AJ31: Short rural | AK31: Long rural | AM31: NO
B32: CitiPower | C32: CitiPower | D32: 76064651056 | E32: Vic | F32: Electricity | G32: Distribution | H32: Revenue cap | I32: Calendar | J32: December | K32: 5 | L32: 5 | M32: 2 | N32: 2016-20 Distribution Determination | O32: 40 Market Street | Q32: MELBOURNE | R32: Vic | S32: 3000 | T32: Locked Bag 14090 | V32: MELBOURNE | W32: VIC | X32: 8001 | Y32: Hannah Williams | Z32: 03 9683 4088 | AA32: hwilliams@powercor.com.au | AB32: YES | AC32: YES | AD32: NO | AE32: NO | AF32: NO | AH32: CBD | AI32: Urban | AJ32: Short rural | AK32: Long rural | AM32: YES | AN32: CitiPower
B33: Directlink | C33: Directlink | D33: 16779340889 | E33: Qld | F33: Electricity | G33: Transmission | H33: Revenue cap | I33: Financial | J33: June | K33: 9 | L33: 5 | M33: 5 | N33: transmission determination | O33: Level 19, HSBC Building | P33: 580 George Street | Q33: SYDNEY | R33: NSW | S33: 2000 | T33: PO Box R41 | V33: ROYAL EXCHANGE | W33: NSW | X33: 1225 | Y33: Scott Young | Z33: 02 9275 0031 | AA33: scott.young@apa.com.au | AB33: NO | AC33: NO | AD33: NO | AE33: NO | AF33: NO | AH33: CBD | AI33: Urban | AJ33: Short rural | AK33: Long rural | AM33: NO | AN33: Directlink
B34: ElectraNet | C34: ElectraNet | D34: 41094482416 | E34: SA | F34: Electricity | G34: Transmission | H34: Revenue cap | I34: Financial | J34: June | K34: 5 | L34: 5 | M34: 5 | N34: transmission determination | O34: 52-55 East Terrace | P34: Rymill Park | Q34: ADELAIDE | R34: SA | S34: 5000 | T34: PO Box 7096 | U34: Hutt Street Post Office | V34: ADELAIDE | W34: SA | X34: 5000 | Y34: Bill Jackson | Z34: 08 8404 7969 | AA34: jackson.bill@electranet.com.au | AB34: NO | AC34: NO | AD34: NO | AE34: NO | AF34: NO | AH34: CBD | AI34: Urban | AJ34: Short rural | AK34: Long rural | AM34: NO | AN34: ElectraNet
B35: Endeavour Energy | C35: Endeavour Energy | D35: 11247365823 | E35: NSW | F35: Electricity | G35: Distribution | H35: Revenue cap | I35: Financial | J35: June | K35: 5 | L35: 5 | M35: 5 | N35: 2014-19 Distribution Determination | O35: 51 Huntingwood Drive | Q35: HUNTINGWOOD | R35: NSW | S35: 2148 | T35: PO Box 811 | V35: SEVEN HILLS | W35: NSW | X35: 1730 | Y35: Jon Hocking | Z35: 02 9853 4386 / 0407 348 156 | AA35: Jon.Hocking@Endeavourenergy.com.au | AB35: NO | AC35: YES | AD35: YES | AE35: YES | AF35: NO | AH35: CBD | AI35: Urban | AJ35: Short rural | AK35: Long rural | AM35: YES | AN35: Endeavour Energy
B36: Energex | C36: Energex | D36: 40078849055 | E36: Qld | F36: Electricity | G36: Distribution | H36: Revenue cap | I36: Financial | J36: June | K36: 5 | L36: 5 | M36: 5 | N36: 2015-20 Distribution Determination | O36: 26 Reddacliff Street | Q36: NEWSTEAD | R36: Qld | S36: 4006 | T36: 26 Reddacliff Street | V36: NEWSTEAD | W36: QLD | X36: 4006 | Y36: Jenny Doyle, Group Manager Regulatory Affairs | Z36: (07) 3851 6416 | AA36: jenny.doyle@ergon.com.au | AB36: YES | AC36: YES | AD36: YES | AE36: NO | AF36: NO | AH36: CBD | AI36: Urban | AJ36: Short rural | AK36: Long rural | AM36: YES | AN36: Energex
B37: Ergon Energy | C37: Ergon Energy | D37: 50087646062 | E37: Qld | F37: Electricity | G37: Distribution | H37: Revenue cap | I37: Financial | J37: June | K37: 5 | L37: 5 | M37: 5 | N37: 2015-20 Distribution Determination | O37: 22 Walker Street | Q37: TOWNSVILLE | R37: Qld | S37: 4810 | T37: Po Box 264 | V37: FORTITUDE VALLEY | W37: QLD | X37: 4006 | Y37: Jenny Doyle, Group Manager Regulatory Affairs | Z37: (07) 3851 6416 | AA37: jenny.doyle@ergon.com.au | AB37: NO | AC37: YES | AD37: YES | AE37: YES | AF37: NO | AH37: CBD | AI37: Urban | AJ37: Short rural | AK37: Long rural | AM37: YES | AN37: Ergon Energy
B38: Essential Energy | C38: Essential Energy | D38: 37428185226 | E38: NSW | F38: Electricity | G38: Distribution | H38: Revenue cap | I38: Financial | J38: June | K38: 5 | L38: 5 | M38: 5 | N38: 2014-19 Distribution Determination | O38: 8 Buller Street | Q38: PORT MACQUARIE | R38: NSW | S38: 2444 | T38: PO Box 5730 | V38: PORT MACQUARIE | W38: NSW | X38: 2444 | Y38: Catherine Waddell | Z38: 02 6338 3553 | AA38: catherine.waddell@essentialenergy.com.au | AB38: NO | AC38: NO | AD38: YES | AE38: YES | AF38: NO | AH38: CBD | AI38: Urban | AJ38: Short rural | AK38: Long rural | AM38: YES | AN38: Essential Energy
B39: Jemena Electricity | C39: Jemena Electricity | D39: 82064651083 | E39: Vic | F39: Electricity | G39: Distribution | H39: Revenue cap | I39: Calendar | J39: December | K39: 5 | L39: 5 | M39: 2 | N39: 2016-20 Distribution Determination | O39: Level 16 | P39: 567 Collins Street | Q39: MELBOURNE | R39: VIC | S39: 3000 | T39: PO Box 16182 | V39: MELBOURNE | W39: VIC | X39: 8001 | Y39: Matthew Serpell | Z39: 03 9173 8231 | AA39: matthew.serpell@jemena.com.au | AB39: NO | AC39: YES | AD39: YES | AE39: NO | AF39: NO | AH39: CBD | AI39: Urban | AJ39: Short rural | AK39: Long rural | AM39: YES | AN39: Jemena Electricity
B40: JGN | C40: Jemena Gas Networks (NSW) Ltd | D40: 003 004 322 | E40: NSW | F40: Gas | G40: Distribution | H40: Weighted average price cap | I40: Financial | J40: June | K40: 5 | L40: 5 | Y40: please provide contact details | AB40: NO | AC40: NO | AD40: NO | AE40: NO | AF40: NO | AH40: CBD | AI40: Urban | AJ40: Short rural | AK40: Long rural | AM40: NO | AN40: JGN
B41: Multinet Gas | C41: Multinet Gas (DB No.1) Pty Ltd (ACN 086 026 986), Multinet Gas (DB No.2) Pty Ltd (ACN 086 230 122) | D41: 086026986 | E41: Vic | F41: Gas | G41: Distribution | H41: Weighted average price cap | I41: Calendar | J41: December | K41: 5 | L41: 5 | M41: x | O41: 43-45 Centreway | Q41: MT WAVERLEY | R41: Vic | S41: 3149 | Y41: Andrew Schille | Z41: 03 8846 9860 | AA41: andrew.schille@ue.com.au | AB41: NO | AC41: NO | AD41: NO | AE41: NO | AF41: NO | AH41: CBD | AI41: Urban | AJ41: Short rural | AK41: Long rural | AM41: NO | AN41: Multinet Gas
B42: Murraylink | C42: Murraylink | D42: 79181207909 | E42: SA | F42: Electricity | G42: Transmission | H42: Revenue cap | I42: Financial | J42: June | K42: 5 | L42: 5 | M42: 5 | N42: transmission determination | O42: Level 19 | P42: 580 George Street | Q42: SYDNEY | R42: NSW | S42: 2000 | T42: PO Box R41 | V42: ROYAL EXCHANGE | W42: NSW | X42: 1225 | Y42: Scott Young | Z42: 02 9275 0031 | AA42: scott.young@apa.com.au | AB42: NO | AC42: NO | AD42: NO | AE42: NO | AF42: NO | AH42: CBD | AI42: Urban | AJ42: Short rural | AK42: Long rural | AM42: NO | AN42: Murraylink
B43: Power and Water | C43: Power and Water Corporation | D43: 15947352360 | E43: NT | F43: Electricity | G43: Distribution | H43: Revenue cap | I43: Financial | J43: June | K43: 5 | L43: 5 | M43: x | N43: distribution determination | O43: GPO Box 1921 | Q43: DARWIN | R43: NT | S43: 801 | T43: GPO Box 1921 | V43: DARWIN | W43: NT | X43: 801 | Y43: Lucy Moon | Z43: 08 8924 5822 | AA43: Lucy.Moon@powerwater.com.au | AB43: YES | AC43: YES | AD43: YES | AE43: YES | AF43: NO | AH43: CBD | AI43: Urban | AJ43: Short rural | AK43: Long rural | AM43: NO | AN43: Power and Water
B44: Powercor Australia | C44: Powercor Australia | D44: 89064651109 | E44: Vic | F44: Electricity | G44: Distribution | H44: Revenue cap | I44: Calendar | J44: December | K44: 5 | L44: 5 | M44: 2 | N44: 2016-20 Distribution Determination | O44: 40 Market Street | Q44: MELBOURNE | R44: Vic | S44: 3000 | T44: Locked bag 14090 | V44: MELBOURNE | W44: VIC | X44: 8001 | Y44: Hannah Williams | Z44: 03 9683 4088 | AA44: hwilliams@powercor.com.au | AB44: NO | AC44: NO | AD44: YES | AE44: YES | AF44: NO | AH44: CBD | AI44: Urban | AJ44: Short rural | AK44: Long rural | AM44: YES | AN44: Powercor Australia
B45: Powerlink | C45: Queensland Electricity Transmission Corporation Limited trading as Powerlink Queensland | D45: 82078849233 | E45: Qld | F45: Electricity | G45: Transmission | H45: Revenue cap | I45: Financial | J45: June | K45: 5 | L45: 5 | M45: 5 | N45: transmission determination | O45: 33 Harold St | Q45: VIRGINIA | R45: Qld | S45: 4014 | T45: PO Box 1193 | V45: VIRGINIA | W45: QLD | X45: 4014 | Y45: Jennifer Harris | Z45: 07 3860 2667 | AA45: jharris@powerlink.com.au | AB45: NO | AC45: NO | AD45: NO | AE45: NO | AF45: NO | AH45: CBD | AI45: Urban | AJ45: Short rural | AK45: Long rural | AM45: NO | AN45: Powerlink
B46: Roma to Brisbane Pipeline | C46: APT Petroleum Pipelines Limited t/a Roma to Brisbane Pipeline | D46: 009 737 393 | E46: Qld | F46: Gas | G46: Transmission | H46: Weighted average price cap | I46: Financial | J46: June | K46: 5 | L46: 5 | M46: x | N46: n/a | O46: 580 George Street | Q46: SYDNEY | R46: NSW | S46: 2000 | T46: PO Box R41 | V46: ROYAL EXCHANGE | W46: NSW | X46: 1225 | Y46: Mark Allen | Z46: 02 9275 0010 | AA46: mark.allen@apa.com.au | AB46: NO | AC46: NO | AD46: NO | AE46: NO | AF46: NO | AH46: CBD | AI46: Urban | AJ46: Short rural | AK46: Long rural | AM46: NO | AN46: Roma to Brisbane Pipeline
B47: SA Power Networks | C47: SA Power Networks | D47: 13332330749 | E47: SA | F47: Electricity | G47: Distribution | H47: Revenue cap | I47: Financial | J47: June | K47: 5 | L47: 5 | M47: 5 | N47: 2015-20 Distribution Determination | O47: 1 Anzac Highway | Q47: KESWICK | R47: SA | S47: 5035 | T47: GPO Box 77 | V47: ADELAIDE | W47: SA | X47: 5000 | Y47: Richard Sibly | Z47: 08 8404 5613 | AA47: richard.sibly@sapowernetworks.com.au | AB47: NO | AC47: NO | AD47: YES | AE47: YES | AF47: NO | AH47: CBD | AI47: Urban | AJ47: Short rural | AK47: Long rural | AM47: NO | AN47: SA Power Networks
B48: TasNetworks (D) | C48: TasNetworks (D) | D48: 24167357299 | E48: Tas | F48: Electricity | G48: Distribution | H48: Revenue cap | I48: Financial | J48: June | K48: 5 | L48: 5 | M48: 5 | N48: distribution determination | O48: 1-7 Maria Street | Q48: LENAH VALLEY | R48: Tas | S48: 7008 | T48: PO Box 606 | V48: MOONAH | W48: Tas | X48: 7009 | Y48: John Sayers | Z48: 03 6271 6469 | AA48: john.sayers@tasnetworks.com.au | AB48: YES | AC48: YES | AD48: YES | AE48: YES | AF48: YES | AH48: Critical Infrastructure | AI48: High density commercial | AJ48: Urban | AK48: High density rural | AL48: Low density rural | AM48: YES | AN48: TasNetworks (D)
B49: TasNetworks (T) | C49: TasNetworks (T) | D49: 24167357299 | E49: Tas | F49: Electricity | G49: Transmission | H49: Revenue cap | I49: Financial | J49: June | K49: 5 | L49: 5 | M49: 5 | N49: transmission determination | O49: 1-7 Maria Street | Q49: LENAH VALLEY | R49: Tas | S49: 7008 | T49: PO Box 606 | V49: MOONAH | W49: Tas | X49: 7009 | Y49: John Sayers | Z49: 03 6271 6469 | AA49: john.sayers@tasnetworks.com.au | AB49: NO | AC49: NO | AD49: NO | AE49: NO | AF49: NO | AH49: CBD | AI49: Urban | AJ49: Short rural | AK49: Long rural | AM49: NO | AN49: TasNetworks (T)
B50: TransGrid | C50: NSW Electricity Networks Operations Pty Ltd trading as TransGrid | D50: 70 250 995 390 | E50: NSW | F50: Electricity | G50: Transmission | H50: Revenue cap | I50: Financial | J50: June | K50: 4 | L50: 5 | M50: 5 | N50: transmission determination | O50: 180 Thomas Street | Q50: SYDNEY | R50: NSW | S50: 2000 | T50: PO Box A1000 | V50: SYDNEY SOUTH | W50: NSW | X50: 1235 | Y50: Garrie Chubb | Z50: 0408 210 221 | AA50: garrie.chubb@transgrid.com.au | AB50: NO | AC50: NO | AD50: NO | AE50: NO | AF50: NO | AH50: CBD | AI50: Urban | AJ50: Short rural | AK50: Long rural | AM50: NO | AN50: TransGrid
B51: United Energy | C51: United Energy | D51: 70064651029 | E51: Vic | F51: Electricity | G51: Distribution | H51: Revenue cap | I51: Calendar | J51: December | K51: 5 | L51: 5 | M51: 2 | N51: 2016-20 Distribution Determination | O51: Level 3 | P51: 6 Nexus Court | Q51: MULGRAVE | R51: Vic | S51: 3149 | T51: PO Box 449 | V51: MOUNT WAVERLEY | W51: VIC | X51: 3170 | Y51: Mathew Abraham | Z51: 03 8846 9758 | AA51: mathew.abraham@ue.com.au | AB51: NO | AC51: NO | AD51: YES | AE51: NO | AF51: NO | AH51: CBD | AI51: Urban | AJ51: Short rural | AK51: Long rural | AM51: YES | AN51: United Energy
Z54: For EB & Reset RINs only | AE54: For AARs only
B55: The Reg Year Ending (dms_RYE) must be set to the last year of the regulatory period. For forecast data is is usually (FRCP_y5) for actual it is a single year (CRY). For historical actual data the RYE will need to be set manually in the business details sheet by setting the dms_Multiyear_flag to 1 and putting the correct value in 'dms_Specified_FinalYear. See cells C67:C68 | N55: Drop down selector box for CA & Reset RINs. | O55: For CA & Reset RINs only | Z55: for DNSP only | AE55: For DNSPs only
B56: dms_Model_List | C56: dms_Worksheet_List | E56: dms_RYE_Formula_Result | N56: dms_0203_ProjectType | O56: dms_020303_01_UOM | P56: dms_020501_01_UOM | Q56: dms_020501_02_UOM | R56: dms_020501_03_UOM | S56: dms_020501_04_UOM | T56: dms_020603_01_UOM | U56: dms_020701_01_UOM | V56: dms_020701_02_UOM | W56: dms_020701_01_Rows | X56: dms_040102_01_UOM | Y56: dms_040102_04_UOM | Z56: dms_030601_01_UOM | AA56: dms_030601_02_UOM | AB56: dms_030701_01_UOM | AC56: dms_030702_01_UOM | AD56: dms_030703_01_UOM | AE56: dms_030605_UOM | AF56: dms_03060703_UOM
B57: ARR | C57: ANNUAL REPORTING STATEMENT | E57: =LEFT(dms_SingleYear_FinalYear_Result,2)&RIGHT(dms_SingleYear_FinalYear_Result,2) -> noIN | F57: =LEFT(dms_SingleYear_FinalYear_Result,2)&RIGHT(dms_SingleYear_FinalYear_Result,2) | H57: Formula errors are OK | N57: New line on new route - single circuit | O57: Circuit line length in km | P57: 0's | Q57: 0's | R57: 0's | S57: 0's | T57: 0's | U57: km | V57: km | W57: Route line length within zone | X57: 0's | Y57: days | Z57: minutes/customer | AA57: minutes/customer | AB57: Customer / km | AC57: % | AD57: km | AE57: number | AF57: number
B58: CA | C58: CATEGORY ANALYSIS | E58: =LEFT(dms_SingleYear_FinalYear_Result,2)&RIGHT(dms_SingleYear_FinalYear_Result,2) -> noIN | F58: =LEFT(dms_SingleYear_FinalYear_Result,2)&RIGHT(dms_SingleYear_FinalYear_Result,2) | H58: Formula errors are OK | N58: New line on new route - dual circuit | O58: Circuit line length in km | P58: 0's | Q58: 0's | R58: 0's | S58: 0's | T58: 0's | U58: 0's | V58: 0's | W58: Number of maintenance spans | X58: 0's | Y58: 0's | Z58: minutes/customer | AA58: minutes/customer | AB58: MWh/customer | AC58: Number of spans | AE58: number | AF58: number
B59: CESS | C59: CAPITLAL EXPENDITURE SHARING SCHEMING | E59: 2016 | F59: =LEFT(dms_SingleYear_FinalYear_Result,2)&RIGHT(dms_SingleYear_FinalYear_Result,2) | N59: New line on new route - other | O59: Circuit line length in km | P59: MVA added | Q59: MVA added | R59: MVA added | S59: MVA added | T59: 0's | U59: km | V59: km | W59: Total length of maintenance spans | X59: 0's | Y59: $0s | Z59: interruptions/customer | AA59: interruptions/customer | AB59: kVA / customer | AC59: Number of spans | AE59: number | AF59: number
B60: CPI | C60: CPI | N60: Line rebuild over existing route - single circuit | O60: Circuit line length in km | P60: 0's | Q60: 0's | R60: 0's | S60: 0's | T60: 0's | U60: km | V60: km | W60: Length of vegetation corridors | X60: $0s | Y60: 0's | Z60: interruptions/customer | AA60: interruptions/customer | AC60: Number of spans | AE60: number | AF60: number
B61: EB | C61: ECONOMIC BENCHMARKING | E61: =LEFT(dms_SingleYear_FinalYear_Result,2)&RIGHT(dms_SingleYear_FinalYear_Result,2) -> noIN | F61: =LEFT(dms_SingleYear_FinalYear_Result,2)&RIGHT(dms_SingleYear_FinalYear_Result,2) | H61: Formula errors are OK | N61: Line rebuild over existing route - dual circuit | O61: Number | P61: total spend $0s | Q61: total spend $0s | R61: total spend $0s | S61: total spend $0s | T61: (per cent) | U61: 0's | V61: 0's | W61: Average number of trees per maintenance span | AC61: Number of spans | AE61: number | AF61: (per cent)
B62: PTRM | C62: POST TAX REVENUE MODEL | E62: =LEFT(dms_MultiYear_FinalYear_Result,2)&RIGHT(dms_MultiYear_FinalYear_Result,2) -> 2025 | F62: =LEFT(dms_MultiYear_FinalYear_Result,2)&RIGHT(dms_MultiYear_FinalYear_Result,2) | N62: Reconductor - Single circuit | O62: Number | P62: net circuit km added | Q62: net circuit km added | R62: net circuit km added | S62: net circuit km added | U62: years | V62: years | W62: Average frequency of cutting cycle | AC62: Years | AE62: number
B63: Reset | C63: REGULATORY REPORTING STATEMENT | E63: =LEFT(dms_MultiYear_FinalYear_Result,2)&RIGHT(dms_MultiYear_FinalYear_Result,2) -> 2025 | F63: =LEFT(dms_MultiYear_FinalYear_Result,2)&RIGHT(dms_MultiYear_FinalYear_Result,2) | H63: Formula errors are OK | N63: Reconductor - Dual circuit | O63: Number | P63: total spend $0s | Q63: total spend $0s | R63: total spend $0s | S63: total spend $0s | AC63: Years | AE63: number
B64: RFM | C64: ROLL FORWARD MODEL | E64: =LEFT(dms_CRCP_FinalYear_Result,2)&RIGHT(dms_CRCP_FinalYear_Result,2) -> 2020 | F64: =LEFT(dms_CRCP_FinalYear_Result,2)&RIGHT(dms_CRCP_FinalYear_Result,2) | N64: Other | P64: net circuit km added | Q64: net circuit km added | R64: net circuit km added | S64: net circuit km added | AC64: Trees | AE64: number
B65: WACC | C65: WEIGHTED AVERAGE COST OF CAPITAL | E65: =LEFT(dms_MultiYear_FinalYear_Result,2)&RIGHT(dms_MultiYear_FinalYear_Result,2) -> 2025 | F65: =LEFT(dms_MultiYear_FinalYear_Result,2)&RIGHT(dms_MultiYear_FinalYear_Result,2) | P65: total spend $0s | Q65: total spend $0s | R65: total spend $0s | S65: total spend $0s | AC65: Trees | AE65: number
P66: 0's | R66: $0s | AC66: Defects | AE66: number
B67: dms_DataQuality_List | P67: 0's | AC67: Defects | AE67: number
B68: Actual | P68: 0's | AC68: Spans | AE68: number
B69: Estimate | P69: $0s | AC69: km | AE69: (per cent)
B70: Consolidated | AC70: Spans | AE70: (per cent)
B71: Recast
B72: Public
O73: For PTRM files - this field set the text for the named range "DMS_Xfactor" which in all cases is simply the text "x factors" - this saves putting in each old gas PTRM file | Z73: for TNSP only
B74: For all files either AER or business needs to be able to specify the type of submission | C74: For PTRM & RFM templates we must provide a choice in case they change their form of control - otherwise it is drawn from the business specific lookup table above. | O74: DMS_Xfactor | Z74: dms_030601_01_UOM | AB74: dms_030701_01_UOM | AC74: dms_030702_01_UOM
B75: dms_SourceList | C75: dms_FormControl_Choices | O75: x factors | Z75: % | AB75: Number of spans | AC75: km
B76: After appeal | C76: Revenue cap | Z76: number | AB76: Years | AC76: %
B77: Draft decision | C77: Revenue yield | Z77: number | AB77: Trees | AC77: km
B78: Final decision | C78: Weighted average price cap | Z78: % | AB78: Defects | AC78: number
B79: PTRM update 1 | Z79: number | AB79: Number of spans
B80: PTRM update 2 | Z80: number | AB80: km
B81: PTRM update 3 | Z81: % | AB81: km
B82: PTRM update 4 | Z82: number | AB82: Number of spans
B83: PTRM update 5 | Z83: number
B84: PTRM update 6 | Z84: %
B85: PTRM update 7 | Z85: number
B86: Regulatory proposal | Z86: %
B87: Reporting | Z87: number
B88: Revised regulatory proposal | Z88: %
Z89: number
B93: Reason for interruption | C93: dms_Reason_Interruption_Detailed | D93: dms_Reason_Interruption | E93: dms_STPIS_Exclusion_List | F93: dms_020301_ProjectType_List | G93: dms_020302_ProjectType_List
B94: Animal | C94: Animal impact | D94: Animal | E94: Weather | F94: New substation establishment | G94: New line on new route - single circuit
C95: Animal nesting/burrowing, etc and other | D95: Asset failure | E95: Equipment failure | F95: Capacity upgrade | G95: New line on new route - dual circuit
C96: Other | D96: Other | E96: Operational error | F96: Voltage upgrade | G96: New line on new route - other
B97: Asset failure | C97: LV | D97: Overloads | E97: Vegetation | F97: Other | G97: Line rebuild over existing route - single circuit
C98: Distribution substation | D98: Planned | E98: Animals | G98: Line rebuild over existing route - dual circuit
C99: HV | D99: Network business | E99: Third party impacts | G99: Reconductor - Single circuit
C100: Zone substation | D100: Third party | E100: Transmission failure | G100: Reconductor - Dual circuit
C101: Subtransmission | D101: Unknown | E101: Load shedding | G101: Reconductor - Other
B102: Other | C102: insert description of 'other' | D102: Vegetation | E102: Inter-distributor connection failure | G102: Line upgrade - raising/retensoring
B103: Overloads | C103: - | D103: Weather | E103: Other | G103: Line upgrade - voltage upgrade
B104: Planned | C104: - | D104: 2 - STPIS Exclusion (3.3)(a) | G104: Line upgrade - capacity
B105: Network business | C105: Network error | D105: 3 - STPIS Exclusion (3.3)(a) | G105: String spare circuit
C106: Switching and protection error | D106: 4 - STPIS Exclusion (3.3)(a) | G106: Other
B107: Third party | C107: Fire | D107: 5 - STPIS Exclusion (3.3)(a)
C108: Other | D108: 6 - STPIS Exclusion (3.3)(a)
C109: Dig-in | D109: 7 - STPIS Exclusion (3.3)(a)
C110: Unauthorised access
C111: Vehicle impact
B112: Unknown | C112: Unknown
B113: Vegetation | C113: Blow-in/Fall-in - NSP responsibility
C114: Grow-in - NSP responsibility
C115: Blow-in/Fall-in - Other responsible party
C116: Grow-in - Other responsible party
B117: Weather
B118: 2 - STPIS Exclusion (3.3)(a)
B119: 3 - STPIS Exclusion (3.3)(a)
B120: 4 - STPIS Exclusion (3.3)(a)
B121: 5 - STPIS Exclusion (3.3)(a)
B122: 6 - STPIS Exclusion (3.3)(a)
B123: 7 - STPIS Exclusion (3.3)(a)
B131: These are indeces and lookup values for various dates. All step from the value placed in FRCP_y1 on the business and other details worksheet | C131: =IF(dms_FifthFeeder_flag_NSP="NO","This NSP has only 4 feeder categories","This NSP has 5 feeder categories") -> This NSP has only 4 feeder categories | O131: These date tables are currently used in the Recast templates to provide column headings and conditional formatting
B132: dms_FRCPlength_Num_List | C132: dms_FinalYear_List | D132: dms_CRCPlength_Num_List | E132: dms_CFinalYear_List | F132: dms_FRCP_years | H132: dms_CRCP_years | J132: dms_CRCP_index | L132: dms_Financial_Years | M132: dms_Calendar_Years | O132: CRY from input cell on business sheet | P132: CRY - financial | Q132: dms_FinYears | R132: CRY calendar | S132: dms_CalYears
B133: 1 | C133: dms_FRCP_y1 | D133: 1 | E133: CRCP_y1 | F133: =FRCP_y1 -> 2020-21 | G133: dms_FRCP_y1 | H133: =IF(dms_RPT="financial",VALUE(LEFT(dms_FRCP_y1,4)-1)&"-"&TEXT(VALUE(MID(dms_FRCP_y1,3,2)),"00"),VALUE(LEFT(dms_FRCP_y1,4)-1)) -> 2019-20 | I133: dms_CRCP_yZ | J133: 1 | L133: 2005-06 | M133: 2006 | O133: =CRY -> 2015-16 | P133: =VALUE(LEFT(CRY,4))&"-"&TEXT(MID(CRY,3,2)+1,"00") -> 2015-16 | Q133: dms_CRYf_y1 | R133: =VALUE(LEFT(CRY,4)+1) -> 2016 | S133: dms_CRYc_y1
B134: 2 | C134: dms_FRCP_y2 | D134: 2 | E134: CRCP_y2 | F134: =IF(dms_RPT="financial",VALUE(LEFT(dms_FRCP_y1,4)+1)&"-"&TEXT(VALUE(RIGHT(dms_FRCP_y1,2)+1),"00"),VALUE(LEFT(dms_FRCP_y1,4)+1)) -> 2021-22 | G134: dms_FRCP_y2 | H134: =IF(dms_RPT="financial",VALUE(LEFT(dms_CRCP_yZ,4)-1)&"-"&TEXT(VALUE(MID(dms_CRCP_yZ,3,2)),"00"),VALUE(LEFT(dms_CRCP_yZ,4)-1)) -> 2018-19 | I134: dms_CRCP_yY | J134: 2 | L134: 2006-07 | M134: 2007 | P134: =VALUE(LEFT(dms_CRYf_y1,4)+1)&"-"&TEXT(MID(dms_CRYf_y1,3,2)+2,"00") -> 2016-17 | Q134: dms_CRYf_y2 | R134: =VALUE(LEFT(dms_CRYc_y1,4)+1) -> 2017 | S134: dms_CRYc_y2
B135: 3 | C135: dms_FRCP_y3 | D135: 3 | E135: CRCP_y3 | F135: =IF(dms_RPT="financial",VALUE(LEFT(dms_FRCP_y2,4)+1)&"-"&TEXT(VALUE(RIGHT(dms_FRCP_y2,2)+1),"00"),VALUE(LEFT(dms_FRCP_y2,4)+1)) -> 2022-23 | G135: dms_FRCP_y3 | H135: =IF(dms_RPT="financial",VALUE(LEFT(dms_CRCP_yY,4)-1)&"-"&TEXT(VALUE(MID(dms_CRCP_yY,3,2)),"00"),VALUE(LEFT(dms_CRCP_yY,4)-1)) -> 2017-18 | I135: dms_CRCP_yX | J135: 3 | L135: 2007-08 | M135: 2008 | P135: =VALUE(LEFT(dms_CRYf_y2,4)+1)&"-"&TEXT(MID(dms_CRYf_y2,3,2)+2,"00") -> 2017-18 | Q135: dms_CRYf_y3 | R135: =VALUE(LEFT(dms_CRYc_y2,4)+1) -> 2018 | S135: dms_CRYc_y3
B136: 4 | C136: dms_FRCP_y4 | D136: 4 | E136: CRCP_y4 | F136: =IF(dms_RPT="financial",VALUE(LEFT(dms_FRCP_y3,4)+1)&"-"&TEXT(VALUE(RIGHT(dms_FRCP_y3,2)+1),"00"),VALUE(LEFT(dms_FRCP_y3,4)+1)) -> 2023-24 | G136: dms_FRCP_y4 | H136: =IF(dms_RPT="financial",VALUE(LEFT(dms_CRCP_yX,4)-1)&"-"&TEXT(VALUE(MID(dms_CRCP_yX,3,2)),"00"),VALUE(LEFT(dms_CRCP_yX,4)-1)) -> 2016-17 | I136: dms_CRCP_yW | J136: 4 | L136: 2008-09 | M136: 2009 | P136: =VALUE(LEFT(dms_CRYf_y3,4)+1)&"-"&TEXT(MID(dms_CRYf_y3,3,2)+2,"00") -> 2018-19 | Q136: dms_CRYf_y4 | R136: =VALUE(LEFT(dms_CRYc_y3,4)+1) -> 2019 | S136: dms_CRYc_y4
B137: 5 | C137: dms_FRCP_y5 | D137: 5 | E137: CRCP_y5 | F137: =IF(dms_RPT="financial",VALUE(LEFT(dms_FRCP_y4,4)+1)&"-"&TEXT(VALUE(RIGHT(dms_FRCP_y4,2)+1),"00"),VALUE(LEFT(dms_FRCP_y4,4)+1)) -> 2024-25 | G137: dms_FRCP_y5 | H137: =IF(dms_RPT="financial",VALUE(LEFT(dms_CRCP_yW,4)-1)&"-"&TEXT(VALUE(MID(dms_CRCP_yW,3,2)),"00"),VALUE(LEFT(dms_CRCP_yW,4)-1)) -> 2015-16 | I137: dms_CRCP_yV | J137: 5 | L137: 2009-10 | M137: 2010 | P137: =VALUE(LEFT(dms_CRYf_y4,4)+1)&"-"&TEXT(MID(dms_CRYf_y4,3,2)+2,"00") -> 2019-20 | Q137: dms_CRYf_y5 | R137: =VALUE(LEFT(dms_CRYc_y4,4)+1) -> 2020 | S137: dms_CRYc_y5
B138: 6 | C138: dms_FRCP_y6 | D138: 6 | E138: CRCP_y6 | F138: =IF(dms_RPT="financial",VALUE(LEFT(dms_FRCP_y5,4)+1)&"-"&TEXT(VALUE(RIGHT(dms_FRCP_y5,2)+1),"00"),VALUE(LEFT(dms_FRCP_y5,4)+1)) -> 2025-26 | G138: dms_FRCP_y6 | H138: =IF(dms_RPT="financial",VALUE(LEFT(dms_CRCP_yV,4)-1)&"-"&TEXT(VALUE(MID(dms_CRCP_yV,3,2)),"00"),VALUE(LEFT(dms_CRCP_yV,4)-1)) -> 2014-15 | I138: dms_CRCP_yU | J138: 6 | L138: 2010-11 | M138: 2011 | P138: =VALUE(LEFT(dms_CRYf_y5,4)+1)&"-"&TEXT(MID(dms_CRYf_y5,3,2)+2,"00") -> 2020-21 | Q138: dms_CRYf_y6 | R138: =VALUE(LEFT(dms_CRYc_y5,4)+1) -> 2021 | S138: dms_CRYc_y6
B139: 7 | C139: dms_FRCP_y7 | D139: 7 | E139: CRCP_y7 | F139: =IF(dms_RPT="financial",VALUE(LEFT(dms_FRCP_y6,4)+1)&"-"&TEXT(VALUE(RIGHT(dms_FRCP_y6,2)+1),"00"),VALUE(LEFT(dms_FRCP_y6,4)+1)) -> 2026-27 | G139: dms_FRCP_y7 | H139: =IF(dms_RPT="financial",VALUE(LEFT(dms_CRCP_yU,4)-1)&"-"&TEXT(VALUE(MID(dms_CRCP_yU,3,2)),"00"),VALUE(LEFT(dms_CRCP_yU,4)-1)) -> 2013-14 | I139: dms_CRCP_yT | J139: 7 | L139: 2011-12 | M139: 2012 | P139: =VALUE(LEFT(dms_CRYf_y6,4)+1)&"-"&TEXT(MID(dms_CRYf_y6,3,2)+2,"00") -> 2021-22 | Q139: dms_CRYf_y7 | R139: =VALUE(LEFT(dms_CRYc_y6,4)+1) -> 2022 | S139: dms_CRYc_y7
B140: 8 | C140: dms_FRCP_y8 | D140: 8 | E140: CRCP_y8 | F140: =IF(dms_RPT="financial",VALUE(LEFT(dms_FRCP_y7,4)+1)&"-"&TEXT(VALUE(RIGHT(dms_FRCP_y7,2)+1),"00"),VALUE(LEFT(dms_FRCP_y7,4)+1)) -> 2027-28 | G140: dms_FRCP_y8 | H140: =IF(dms_RPT="financial",VALUE(LEFT(dms_CRCP_yT,4)-1)&"-"&TEXT(VALUE(MID(dms_CRCP_yT,3,2)),"00"),VALUE(LEFT(dms_CRCP_yT,4)-1)) -> 2012-13 | I140: dms_CRCP_yS | J140: 8 | L140: 2012-13 | M140: 2013 | P140: =VALUE(LEFT(dms_CRYf_y7,4)+1)&"-"&TEXT(MID(dms_CRYf_y7,3,2)+2,"00") -> 2022-23 | Q140: dms_CRYf_y8 | R140: =VALUE(LEFT(dms_CRYc_y7,4)+1) -> 2023 | S140: dms_CRYc_y8
B141: 9 | C141: dms_FRCP_y9 | D141: 9 | E141: CRCP_y9 | F141: =IF(dms_RPT="financial",VALUE(LEFT(dms_FRCP_y8,4)+1)&"-"&TEXT(VALUE(RIGHT(dms_FRCP_y8,2)+1),"00"),VALUE(LEFT(dms_FRCP_y8,4)+1)) -> 2028-29 | G141: dms_FRCP_y9 | H141: =IF(dms_RPT="financial",VALUE(LEFT(dms_CRCP_yS,4)-1)&"-"&TEXT(VALUE(MID(dms_CRCP_yS,3,2)),"00"),VALUE(LEFT(dms_CRCP_yS,4)-1)) -> 2011-12 | I141: dms_CRCP_yR | J141: 9 | L141: 2013-14 | M141: 2014 | P141: =VALUE(LEFT(dms_CRYf_y8,4)+1)&"-"&TEXT(MID(dms_CRYf_y8,3,2)+2,"00") -> 2023-24 | Q141: dms_CRYf_y9 | R141: =VALUE(LEFT(dms_CRYc_y8,4)+1) -> 2024 | S141: dms_CRYc_y9
B142: 10 | C142: dms_FRCP_y10 | D142: 10 | E142: CRCP_y10 | F142: =IF(dms_RPT="financial",VALUE(LEFT(dms_FRCP_y9,4)+1)&"-"&TEXT(VALUE(RIGHT(dms_FRCP_y9,2)+1),"00"),VALUE(LEFT(dms_FRCP_y9,4)+1)) -> 2029-30 | G142: dms_FRCP_y10 | H142: =IF(dms_RPT="financial",VALUE(LEFT(dms_CRCP_yR,4)-1)&"-"&TEXT(VALUE(MID(dms_CRCP_yR,3,2)),"00"),VALUE(LEFT(dms_CRCP_yR,4)-1)) -> 2010-11 | I142: dms_CRCP_yQ | J142: 10 | L142: 2014-15 | M142: 2015 | P142: =VALUE(LEFT(dms_CRYf_y9,4)+1)&"-"&TEXT(MID(dms_CRYf_y9,3,2)+2,"00") -> 2024-25 | Q142: dms_CRYf_y10 | R142: =VALUE(LEFT(dms_CRYc_y9,4)+1) -> 2025 | S142: dms_CRYc_y10
B143: 11 | C143: dms_FRCP_y11 | D143: 11 | E143: CRCP_y11 | F143: =IF(dms_RPT="financial",VALUE(LEFT(dms_FRCP_y10,4)+1)&"-"&TEXT(VALUE(RIGHT(dms_FRCP_y10,2)+1),"00"),VALUE(LEFT(dms_FRCP_y10,4)+1)) -> 2030-31 | G143: dms_FRCP_y11 | H143: =IF(dms_RPT="financial",VALUE(LEFT(dms_CRCP_yQ,4)-1)&"-"&TEXT(VALUE(MID(dms_CRCP_yQ,3,2)),"00"),VALUE(LEFT(dms_CRCP_yQ,4)-1)) -> 2009-10 | I143: dms_CRCP_yP | J143: 11 | L143: 2015-16 | M143: 2016 | P143: =VALUE(LEFT(dms_CRYf_y10,4)+1)&"-"&TEXT(MID(dms_CRYf_y10,3,2)+2,"00") -> 2025-26 | Q143: dms_CRYf_y11 | R143: =VALUE(LEFT(dms_CRYc_y10,4)+1) -> 2026 | S143: dms_CRYc_y11
B144: 12 | C144: dms_FRCP_y12 | D144: 12 | E144: CRCP_y12 | F144: =IF(dms_RPT="financial",VALUE(LEFT(dms_FRCP_y11,4)+1)&"-"&TEXT(VALUE(RIGHT(dms_FRCP_y11,2)+1),"00"),VALUE(LEFT(dms_FRCP_y11,4)+1)) -> 2031-32 | G144: dms_FRCP_y12 | H144: =IF(dms_RPT="financial",VALUE(LEFT(dms_CRCP_yP,4)-1)&"-"&TEXT(VALUE(MID(dms_CRCP_yP,3,2)),"00"),VALUE(LEFT(dms_CRCP_yP,4)-1)) -> 2008-09 | I144: dms_CRCP_yO | J144: 12 | L144: 2016-17 | M144: 2017 | P144: =VALUE(LEFT(dms_CRYf_y11,4)+1)&"-"&TEXT(MID(dms_CRYf_y11,3,2)+2,"00") -> 2026-27 | Q144: dms_CRYf_y12 | R144: =VALUE(LEFT(dms_CRYc_y11,4)+1) -> 2027 | S144: dms_CRYc_y12
B145: 13 | C145: dms_FRCP_y13 | D145: 13 | E145: CRCP_y13 | F145: =IF(dms_RPT="financial",VALUE(LEFT(dms_FRCP_y12,4)+1)&"-"&TEXT(VALUE(RIGHT(dms_FRCP_y12,2)+1),"00"),VALUE(LEFT(dms_FRCP_y12,4)+1)) -> 2032-33 | G145: dms_FRCP_y13 | H145: =IF(dms_RPT="financial",VALUE(LEFT(dms_CRCP_yO,4)-1)&"-"&TEXT(VALUE(MID(dms_CRCP_yO,3,2)),"00"),VALUE(LEFT(dms_CRCP_yO,4)-1)) -> 2007-08 | I145: dms_CRCP_yN | J145: 13 | L145: 2017-18 | M145: 2018 | P145: =VALUE(LEFT(dms_CRYf_y12,4)+1)&"-"&TEXT(MID(dms_CRYf_y12,3,2)+2,"00") -> 2027-28 | Q145: dms_CRYf_y13 | R145: =VALUE(LEFT(dms_CRYc_y12,4)+1) -> 2028 | S145: dms_CRYc_y13
B146: 14 | C146: dms_FRCP_y14 | D146: 14 | E146: CRCP_y14 | F146: =IF(dms_RPT="financial",VALUE(LEFT(dms_FRCP_y13,4)+1)&"-"&TEXT(VALUE(RIGHT(dms_FRCP_y13,2)+1),"00"),VALUE(LEFT(dms_FRCP_y13,4)+1)) -> 2033-34 | G146: dms_FRCP_y14 | H146: =IF(dms_RPT="financial",VALUE(LEFT(dms_CRCP_yN,4)-1)&"-"&TEXT(VALUE(MID(dms_CRCP_yN,3,2)),"00"),VALUE(LEFT(dms_CRCP_yN,4)-1)) -> 2006-07 | I146: dms_CRCP_yM | J146: 14 | L146: 2018-19 | M146: 2019 | P146: =VALUE(LEFT(dms_CRYf_y13,4)+1)&"-"&TEXT(MID(dms_CRYf_y13,3,2)+2,"00") -> 2028-29 | Q146: dms_CRYf_y14 | R146: =VALUE(LEFT(dms_CRYc_y13,4)+1) -> 2029 | S146: dms_CRYc_y14
B147: 15 | C147: dms_FRCP_y15 | D147: 15 | E147: CRCP_y15 | F147: =IF(dms_RPT="financial",VALUE(LEFT(dms_FRCP_y14,4)+1)&"-"&TEXT(VALUE(RIGHT(dms_FRCP_y14,2)+1),"00"),VALUE(LEFT(dms_FRCP_y14,4)+1)) -> 2034-35 | G147: dms_FRCP_y15 | H147: =IF(dms_RPT="financial",VALUE(LEFT(dms_CRCP_yM,4)-1)&"-"&TEXT(VALUE(MID(dms_CRCP_yM,3,2)),"00"),VALUE(LEFT(dms_CRCP_yM,4)-1)) -> 2005-06 | I147: dms_CRCP_yL | J147: 15 | L147: 2019-20 | M147: 2020 | P147: =VALUE(LEFT(dms_CRYf_y14,4)+1)&"-"&TEXT(MID(dms_CRYf_y14,3,2)+2,"00") -> 2029-30 | Q147: dms_CRYf_y15 | R147: =VALUE(LEFT(dms_CRYc_y14,4)+1) -> 2030 | S147: dms_CRYc_y15
L148: 2020-21 | M148: 2021 | P148: =VALUE(LEFT(dms_CRYf_y15,4)+1)&"-"&TEXT(MID(dms_CRYf_y15,3,2)+2,"00") -> 2030-31 | Q148: dms_CRYf_y16 | R148: =VALUE(LEFT(dms_CRYc_y15,4)+1) -> 2031 | S148: dms_CRYc_y16
B149: These are drop down lists for businesses to select the correct FRCP_y1 on the business and other details worksheet. This also populates the column headings in the worksheets | L149: 2021-22 | M149: 2022 | P149: =VALUE(LEFT(dms_CRYf_y16,4)+1)&"-"&TEXT(MID(dms_CRYf_y16,3,2)+2,"00") -> 2031-32 | Q149: dms_CRYf_y17 | R149: =VALUE(LEFT(dms_CRYc_y16,4)+1) -> 2032 | S149: dms_CRYc_y17
B150: dms_RCP_fyear_list | C150: dms_CRY_ListF | D150: dms_CRY_ListC | E150: dms_RCP_cyear_list | F150: dms_FRCP_fyear_list | G150: dms_FRCP_ListF | H150: dms_FRCP_ListC | I150: dms_FRCP_cyear_list | L150: 2022-23 | M150: 2023 | P150: =VALUE(LEFT(dms_CRYf_y17,4)+1)&"-"&TEXT(MID(dms_CRYf_y17,3,2)+2,"00") -> 2032-33 | Q150: dms_CRYf_y18 | R150: =VALUE(LEFT(dms_CRYc_y17,4)+1) -> 2033 | S150: dms_CRYc_y18
B151: dms_y1 | C151: =CRY -> 2015-16 | D151: 2006 | E151: dms_cy1 | F151: dms_frcp_fy1 | G151: 2010-11 | H151: 2011 | I151: dms_crcp_cy1 | L151: 2023-24 | M151: 2024 | P151: =VALUE(LEFT(dms_CRYf_y18,4)+1)&"-"&TEXT(MID(dms_CRYf_y18,3,2)+2,"00") -> 2033-34 | Q151: dms_CRYf_y19 | R151: =VALUE(LEFT(dms_CRYc_y18,4)+1) -> 2034 | S151: dms_CRYc_y19
B152: dms_y2 | C152: =IF(dms_RPT="financial",VALUE(LEFT(CRY,4)+1)&"-"&TEXT(MID(CRY,3,2)+2,"00"),VALUE(LEFT(CRY,4)+1)) -> 2016-17 | D152: 2007 | E152: dms_cy2 | F152: dms_frcp_fy2 | G152: 2011-12 | H152: 2012 | I152: dms_crcp_cy2 | L152: 2024-25 | M152: 2025 | P152: =VALUE(LEFT(dms_CRYf_y19,4)+1)&"-"&TEXT(MID(dms_CRYf_y19,3,2)+2,"00") -> 2034-35 | Q152: dms_CRYf_y20 | R152: =VALUE(LEFT(dms_CRYc_y19,4)+1) -> 2035 | S152: dms_CRYc_y20
B153: dms_y3 | C153: =IF(dms_RPT="financial",VALUE(LEFT(dms_fy2,4)+1)&"-"&TEXT(MID(dms_fy2,3,2)+2,"00"),VALUE(LEFT(dms_fy2,4)+1)) -> 2017-18 | D153: 2008 | E153: dms_cy3 | F153: dms_frcp_fy3 | G153: 2012-13 | H153: 2013 | I153: dms_crcp_cy3 | L153: 2025-26 | M153: 2026
B154: dms_y4 | C154: =IF(dms_RPT="financial",VALUE(LEFT(dms_fy3,4)+1)&"-"&TEXT(MID(dms_fy3,3,2)+2,"00"),VALUE(LEFT(dms_fy3,4)+1)) -> 2018-19 | D154: 2009 | E154: dms_cy4 | F154: dms_frcp_fy4 | G154: 2013-14 | H154: 2014 | I154: dms_crcp_cy4 | L154: 2026-27 | M154: 2027
B155: dms_y5 | C155: =IF(dms_RPT="financial",VALUE(LEFT(dms_fy4,4)+1)&"-"&TEXT(MID(dms_fy4,3,2)+2,"00"),VALUE(LEFT(dms_fy4,4)+1)) -> 2019-20 | D155: 2010 | E155: dms_cy5 | F155: dms_frcp_fy5 | G155: 2014-15 | H155: 2015 | I155: dms_crcp_cy5 | L155: 2027-28 | M155: 2028
B156: dms_y6 | C156: =IF(dms_RPT="financial",VALUE(LEFT(dms_fy5,4)+1)&"-"&TEXT(MID(dms_fy5,3,2)+2,"00"),VALUE(LEFT(dms_fy5,4)+1)) -> 2020-21 | D156: 2011 | E156: dms_cy6 | F156: dms_frcp_fy6 | G156: 2015-16 | H156: 2016 | I156: dms_crcp_cy6 | L156: 2028-29 | M156: 2029
B157: dms_y7 | C157: =IF(dms_RPT="financial",VALUE(LEFT(dms_fy6,4)+1)&"-"&TEXT(MID(dms_fy6,3,2)+2,"00"),VALUE(LEFT(dms_fy6,4)+1)) -> 2021-22 | D157: 2012 | E157: dms_cy7 | F157: dms_frcp_fy7 | G157: 2016-17 | H157: 2017 | I157: dms_crcp_cy7 | L157: 2029-30 | M157: 2030
B158: dms_y8 | C158: =IF(dms_RPT="financial",VALUE(LEFT(dms_fy7,4)+1)&"-"&TEXT(MID(dms_fy7,3,2)+2,"00"),VALUE(LEFT(dms_fy7,4)+1)) -> 2022-23 | D158: 2013 | E158: dms_cy8 | F158: dms_frcp_fy8 | G158: 2017-18 | H158: 2018 | I158: dms_crcp_cy8 | L158: 2030-31 | M158: 2031
B159: dms_y9 | C159: =IF(dms_RPT="financial",VALUE(LEFT(dms_fy8,4)+1)&"-"&TEXT(MID(dms_fy8,3,2)+2,"00"),VALUE(LEFT(dms_fy8,4)+1)) -> 2023-24 | D159: 2014 | E159: dms_cy9 | F159: dms_frcp_fy9 | G159: 2018-19 | H159: 2019 | I159: dms_crcp_cy9 | L159: 2031-32 | M159: 2032
B160: dms_y10 | C160: =IF(dms_RPT="financial",VALUE(LEFT(dms_fy9,4)+1)&"-"&TEXT(MID(dms_fy9,3,2)+2,"00"),VALUE(LEFT(dms_fy9,4)+1)) -> 2024-25 | D160: 2015 | E160: dms_cy10 | F160: dms_frcp_fy10 | G160: 2019-20 | H160: 2020 | I160: dms_crcp_cy10 | L160: 2032-33 | M160: 2033
B161: dms_y11 | C161: =IF(dms_RPT="financial",VALUE(LEFT(dms_fy10,4)+1)&"-"&TEXT(MID(dms_fy10,3,2)+2,"00"),VALUE(LEFT(dms_fy10,4)+1)) -> 2025-26 | D161: 2016 | E161: dms_cy11 | F161: dms_frcp_fy11 | G161: 2020-21 | H161: 2021 | I161: dms_crcp_cy11 | L161: 2033-34 | M161: 2034
B162: dms_y12 | C162: =IF(dms_RPT="financial",VALUE(LEFT(dms_fy11,4)+1)&"-"&TEXT(MID(dms_fy11,3,2)+2,"00"),VALUE(LEFT(dms_fy11,4)+1)) -> 2026-27 | D162: 2017 | E162: dms_cy12 | F162: dms_frcp_fy12 | G162: 2021-22 | H162: 2022 | I162: dms_crcp_cy12 | L162: 2034-35 | M162: 2035
B163: dms_y13 | C163: =IF(dms_RPT="financial",VALUE(LEFT(dms_fy12,4)+1)&"-"&TEXT(MID(dms_fy12,3,2)+2,"00"),VALUE(LEFT(dms_fy12,4)+1)) -> 2027-28 | D163: 2018 | E163: dms_cy13 | F163: dms_frcp_fy13 | G163: 2022-23 | H163: 2023 | I163: dms_crcp_cy13 | L163: 2035-36 | M163: 2036
B164: dms_y14 | C164: =IF(dms_RPT="financial",VALUE(LEFT(dms_fy13,4)+1)&"-"&TEXT(MID(dms_fy13,3,2)+2,"00"),VALUE(LEFT(dms_fy13,4)+1)) -> 2028-29 | D164: 2019 | E164: dms_cy14 | F164: dms_frcp_fy14 | G164: 2023-24 | H164: 2024 | I164: dms_crcp_cy14
B165: dms_y15 | C165: =IF(dms_RPT="financial",VALUE(LEFT(dms_fy14,4)+1)&"-"&TEXT(MID(dms_fy14,3,2)+2,"00"),VALUE(LEFT(dms_fy14,4)+1)) -> 2029-30 | D165: 2020 | E165: dms_cy15 | F165: dms_frcp_fy15 | G165: 2024-25 | H165: 2025 | I165: dms_crcp_cy15
B166: dms_y16 | C166: =IF(dms_RPT="financial",VALUE(LEFT(dms_fy15,4)+1)&"-"&TEXT(MID(dms_fy15,3,2)+2,"00"),VALUE(LEFT(dms_fy15,4)+1)) -> 2030-31 | D166: 2021 | E166: dms_cy16
B167: dms_y17 | C167: =IF(dms_RPT="financial",VALUE(LEFT(dms_fy16,4)+1)&"-"&TEXT(MID(dms_fy16,3,2)+2,"00"),VALUE(LEFT(dms_fy16,4)+1)) -> 2031-32 | D167: 2022 | E167: dms_cy17
B168: dms_y18 | C168: =IF(dms_RPT="financial",VALUE(LEFT(dms_fy17,4)+1)&"-"&TEXT(MID(dms_fy17,3,2)+2,"00"),VALUE(LEFT(dms_fy17,4)+1)) -> 2032-33 | D168: 2023 | E168: dms_cy18
B169: dms_y19 | C169: =IF(dms_RPT="financial",VALUE(LEFT(dms_fy18,4)+1)&"-"&TEXT(MID(dms_fy18,3,2)+2,"00"),VALUE(LEFT(dms_fy18,4)+1)) -> 2033-34 | D169: 2024 | E169: dms_cy19
B170: dms_y20 | C170: =IF(dms_RPT="financial",VALUE(LEFT(dms_fy19,4)+1)&"-"&TEXT(MID(dms_fy19,3,2)+2,"00"),VALUE(LEFT(dms_fy19)+1)) -> 2034-35 | D170: 2025 | E170: dms_cy20
B176: These "row descriptions" are the column headings in the various templates but become row descriptions in the ETL process
C177: Table 6.3 sustained interruptions - row descriptions
C178: dms_060301_CustNo_Affected_Row | D178: dms_060301_Avg_Duration_Sustained_Int_Row | E178: dms_060301_Effect_unplanned_SAIDI_Row | F178: dms_060301_Effect_unplanned_SAIFI_Row
C179: Number of customers affected by the interruption | D179: Average duration of sustained customer interruption | E179: Effect on unplanned SAIDI | F179: Effect on unplanned SAIFI
C183: Table 6.1 telephone answering - row descriptions and start date
C184: dms_060101_Rows | D184: dms_060102_Rows | E184: dms_060101_StartDateTxt
C185: Total number of calls (after removing excluded events) | D185: Number of calls answered within 30 seconds (after excluding excluded events) | E185: =dms_060701_StartDateTxt -> 1-Jul-2013
H189: dms_0603_FeederList | I189: =INDEX(dms_FeederName_1,MATCH(dms_TradingName,dms_TradingName_List)) -> CBD | J189: =INDEX(dms_FeederName_2,MATCH(dms_TradingName,dms_TradingName_List)) -> Urban | K189: =INDEX(dms_FeederName_3,MATCH(dms_TradingName,dms_TradingName_List)) -> Short rural | L189: =INDEX(dms_FeederName_4,MATCH(dms_TradingName,dms_TradingName_List)) -> Long rural
C190: Table 6.7.1 - daily performance data - unplanned - MAIFI -- row descriptions and header named range values
C191: These headings (Lists) are determined from the INDEX/MATCH function on the NSP selected on the Business & other details sheet
B192: dms_060701_Feeder_Header_Lvl4 | C192: =INDEX(dms_FeederName_1,MATCH(dms_TradingName,dms_TradingName_List)) -> CBD | D192: =INDEX(dms_FeederName_1,MATCH(dms_TradingName,dms_TradingName_List)) -> CBD | E192: =INDEX(dms_FeederName_2,MATCH(dms_TradingName,dms_TradingName_List)) -> Urban | F192: =INDEX(dms_FeederName_2,MATCH(dms_TradingName,dms_TradingName_List)) -> Urban | G192: =INDEX(dms_FeederName_3,MATCH(dms_TradingName,dms_TradingName_List)) -> Short rural | H192: =INDEX(dms_FeederName_3,MATCH(dms_TradingName,dms_TradingName_List)) -> Short rural | I192: =INDEX(dms_FeederName_4,MATCH(dms_TradingName,dms_TradingName_List)) -> Long rural | J192: =INDEX(dms_FeederName_4,MATCH(dms_TradingName,dms_TradingName_List)) -> Long rural | K192: =IF((INDEX(dms_FeederName_5,MATCH(dms_TradingName,dms_TradingName_List))=0),"Network",(INDEX(dms_FeederName_5,MATCH(dms_TradingName,dms_TradingName_List)))) -> Network | L192: =IF((INDEX(dms_FeederName_5,MATCH(dms_TradingName,dms_TradingName_List))=0),"Network",(INDEX(dms_FeederName_5,MATCH(dms_TradingName,dms_TradingName_List)))) -> Network | M192: Network | N192: Network
B194: dms_060701_Rows | C194: All events | D194: After removing excluded events | E194: All events | F194: After removing excluded events | G194: All events | H194: After removing excluded events | I194: All events | J194: After removing excluded events | K194: All events | L194: After removing excluded events | M194: All events | N194: After removing excluded events
C195: the number of column headings changes from 10 to 12 depending on the number of feeder categories for the NSP
C200: Table 6.8.1 - row descriptions
C201: dms_060801_01_Rows | D201: dms_060801_02_Rows | E201: dms_060801_03_Rows | F201: dms_060801_04_Rows
C202: Number of interruptions | D202: Duration of interruptions | E202: Total unplanned minutes off supply | F202: Effect on unplanned MAIFI
C207: Table 7.9.4 - market impact component - row descriptions
B208: dms_070904_01_Rows | C208: without exclusions | D208: with exclusions
C214: Use this to add to existing files
C215: ARRs 6.7 STPIS daily performance
C216: dms_060101_Values | D216: dms_060102_Values | E216: dms_060701_Values
C218: ARR's 6.8 STPIS exclusions
C219: dms_060801_Event_Date | D219: dms_060801_OutageID | E219: dms_060801_FeederID | F219: dms_060801_FeederClass | G219: dms_060801_CauseID | H219: dms_060801_01_Values | I219: dms_060801_02_Values | J219: dms_060801_03_Values | K219: dms_060801_Excl_Cat | L219: dms_060801_04_Values
C220: dms_060801_StartCell
C222: CA 6.3 sustained interruptions
C223: dms_060301_Event_Date | D223: dms_060301_Event_Time | E223: dms_060301_AssetID | F223: dms_060301_FeederClass | G223: dms_060301_Reason | H223: dms_060301_DetailedReason | I223: dms_060301_CustNo_Affected_Values | J223: dms_060301_Avg_Duration_Sustained_Int_Values | K223: dms_060301_Effect_unplanned_SAIDI_Values | L223: dms_060301_Effect_unplanned_SAIFI_Values | M223: dms_060301_MED

Sheet Business & other details
B1: =IF(dms_DataQuality="backcast",INDEX(dms_Worksheet_List,MATCH(dms_Model,dms_Model_List))&" BACKCAST",INDEX(dms_Worksheet_List,MATCH(dms_Model,dms_Model_List))) -> REGULATORY REPORTING STATEMENT
B2: =INDEX(dms_TradingNameFull_List,MATCH(dms_TradingName,dms_TradingName_List)) -> SA Power Networks
B3: =IF(SUM(dms_SingleYear_Model)>0,CONCATENATE(CRY),CONCATENATE(FRCP_y1," to ",dms_MultiYear_FinalYear_Result)) -> 2020-21 to 2024-25
B4: BUSINESS & OTHER DETAILS
B7: Instructions
B8: Complete the following business details regulatory template before entering data or values in any other regulatory template. This regulatory template is linked to other cells within the spreadsheet and automatically generates column headings and conditional formatting to distinguish business specific input and non-input cells.
B10: SUBMISSION PARTICULARS INPUT SHEETS
B12: ENTITY DETAILS
B14: Short name | C14: SA Power Networks | F14: Select business name from drop down list first
B15: ACN / ABN | C15: =INDEX(dms_ABN_List,MATCH(dms_TradingName,dms_TradingName_List)) -> 13332330749
B18: Business address | C18: Address 1 | E18: =INDEX(dms_Addr1_List,MATCH(dms_TradingName,dms_TradingName_List)) -> 1 Anzac Highway
D19: Address 2 | E19: =IF(ISBLANK(INDEX(dms_Addr2_List,MATCH(dms_TradingName,dms_TradingName_List))),"",(INDEX(dms_Addr2_List,MATCH(dms_TradingName,dms_TradingName_List)))) -> 
C20: Suburb | E20: =INDEX(dms_Suburb_List,MATCH(dms_TradingName,dms_TradingName_List)) -> KESWICK
D21: State | E21: =INDEX(dms_State_List,MATCH(dms_TradingName,dms_TradingName_List)) -> SA | F21: p/code | G21: =INDEX(dms_PostCode_List,MATCH(dms_TradingName,dms_TradingName_List)) -> 5035
B23: Postal address | C23: Address 1 | E23: =INDEX(dms_PAddr1_List,MATCH(dms_TradingName,dms_TradingName_List)) -> GPO Box 77
D24: Address 2 | E24: =IF(ISBLANK(INDEX(dms_PAddr2_List,MATCH(dms_TradingName,dms_TradingName_List))),"",(INDEX(dms_PAddr2_List,MATCH(dms_TradingName,dms_TradingName_List)))) -> 
C25: Suburb | E25: =INDEX(dms_PSuburb_List,MATCH(dms_TradingName,dms_TradingName_List)) -> ADELAIDE
D26: State | E26: =INDEX(dms_PState_List,MATCH(dms_TradingName,dms_TradingName_List)) -> SA | F26: p/code | G26: =INDEX(dms_PPostCode_List,MATCH(dms_TradingName,dms_TradingName_List)) -> 5000
B29: Contact name/s | C29: =INDEX(dms_ContactName1_List,MATCH(dms_TradingName,dms_TradingName_List)) -> Richard Sibly
B30: Contact phone/s | C30: =INDEX(dms_ContactPh1_List,MATCH(dms_TradingName,dms_TradingName_List)) -> 08 8404 5613
B31: Contact email address/s | C31: =INDEX(dms_ContactEmail_List,MATCH(dms_TradingName,dms_TradingName_List)) -> richard.sibly@sapowernetworks.com.au
B33: REGULATORY CONTROL PERIODS
B35: Forthcoming regulatory control period | C35: 2020-21 | D35: =dms_FRCP_y2 -> 2021-22 | E35: =dms_FRCP_y3 -> 2022-23 | F35: =dms_FRCP_y4 -> 2023-24 | G35: =dms_FRCP_y5 -> 2024-25
C36: =dms_FRCP_y6 -> 2025-26 | D36: =dms_FRCP_y7 -> 2026-27 | E36: =dms_FRCP_y8 -> 2027-28 | F36: =dms_FRCP_y9 -> 2028-29 | G36: =dms_FRCP_y10 -> 2029-30
B39: Current regulatory control period | C39: =dms_CRCP_FirstYear_Result -> 2015-16 | D39: =IF(dms_RPT="financial",VALUE(LEFT(CRCP_y1,4)+1)&"-"&TEXT(MID(CRCP_y1,3,2)+2,"00"),VALUE(LEFT(CRCP_y1,4)+1)) -> 2016-17 | E39: =IF(dms_RPT="financial",VALUE(LEFT(CRCP_y1,4)+2)&"-"&TEXT(VALUE(MID(CRCP_y1,3,2)+3),"00"),VALUE(LEFT(CRCP_y1,4)+2)) -> 2017-18 | F39: =IF(dms_RPT="financial",VALUE(LEFT(CRCP_y1,4)+3)&"-"&TEXT(MID(CRCP_y1,3,2)+4,"00"),VALUE(LEFT(CRCP_y1,4)+3)) -> 2018-19 | G39: =IF(dms_RPT="financial",VALUE(LEFT(CRCP_y1,4)+4)&"-"&TEXT(MID(CRCP_y1,3,2)+5,"00"),VALUE(LEFT(CRCP_y1,4)+4)) -> 2019-20
C40: =IF(dms_RPT="financial",VALUE(LEFT(CRCP_y1,4)+5)&"-"&TEXT(MID(CRCP_y1,3,2)+6,"00"),VALUE(LEFT(CRCP_y1,4)+5)) -> 2020-21 | D40: =IF(dms_RPT="financial",VALUE(LEFT(CRCP_y1,4)+6)&"-"&TEXT(MID(CRCP_y1,3,2)+7,"00"),VALUE(LEFT(CRCP_y1,4)+6)) -> 2021-22 | E40: =IF(dms_RPT="financial",VALUE(LEFT(CRCP_y1,4)+7)&"-"&TEXT(MID(CRCP_y1,3,2)+8,"00"),VALUE(LEFT(CRCP_y1,4)+7)) -> 2022-23 | F40: =IF(dms_RPT="financial",VALUE(LEFT(CRCP_y1,4)+8)&"-"&TEXT(MID(CRCP_y1,3,2)+9,"00"),VALUE(LEFT(CRCP_y1,4)+8)) -> 2023-24 | G40: =IF(dms_RPT="financial",VALUE(LEFT(CRCP_y1,4)+9)&"-"&TEXT(MID(CRCP_y1,3,2)+10,"00"),VALUE(LEFT(CRCP_y1,4)+9)) -> 2024-25
C41: =IF(dms_RPT="financial",VALUE(LEFT(CRCP_y1,4)+10)&"-"&TEXT(MID(CRCP_y1,3,2)+11,"00"),VALUE(LEFT(CRCP_y1,4)+10)) -> 2025-26 | D41: =IF(dms_RPT="financial",VALUE(LEFT(CRCP_y1,4)+11)&"-"&TEXT(MID(CRCP_y1,3,2)+12,"00"),VALUE(LEFT(CRCP_y1,4)+11)) -> 2026-27 | E41: =IF(dms_RPT="financial",VALUE(LEFT(CRCP_y1,4)+12)&"-"&TEXT(MID(CRCP_y1,3,2)+13,"00"),VALUE(LEFT(CRCP_y1,4)+12)) -> 2027-28 | F41: =IF(dms_RPT="financial",VALUE(LEFT(CRCP_y1,4)+13)&"-"&TEXT(MID(CRCP_y1,3,2)+14,"00"),VALUE(LEFT(CRCP_y1,4)+13)) -> 2028-29 | G41: =IF(dms_RPT="financial",VALUE(LEFT(CRCP_y1,4)+14)&"-"&TEXT(MID(CRCP_y1,3,2)+15,"00"),VALUE(LEFT(CRCP_y1,4)+14)) -> 2029-30
B44: Previous regulatory control period | C44: =IF(dms_RPT="financial",VALUE(LEFT(PRCP_y2,4)-1)&"-"&TEXT(VALUE(MID(PRCP_y2,3,2)),"00"),VALUE(LEFT(PRCP_y2,4)-1)) -> 2010-11 | D44: =IF(dms_RPT="financial",VALUE(LEFT(PRCP_y3,4)-1)&"-"&TEXT(VALUE(MID(PRCP_y3,3,2)),"00"),VALUE(LEFT(PRCP_y3,4)-1)) -> 2011-12 | E44: =IF(dms_RPT="financial",VALUE(LEFT(PRCP_y4,4)-1)&"-"&TEXT(VALUE(MID(PRCP_y4,3,2)),"00"),VALUE(LEFT(PRCP_y4,4)-1)) -> 2012-13 | F44: =IF(dms_RPT="financial",VALUE(LEFT(PRCP_y5,4)-1)&"-"&TEXT(VALUE(RIGHT(PRCP_y5,2)-1),"00"),VALUE(LEFT(PRCP_y5,4)-1)) -> 2013-14 | G44: =IF(dms_RPT="financial",VALUE(LEFT(CRCP_y1,4)-1)&"-"&TEXT(VALUE(RIGHT(CRCP_y1,2)-1),"00"),VALUE(LEFT(CRCP_y1,4)-1)) -> 2014-15
B48: Commencing regulatory year | C48: 2015-16 | D48: CRY
B50: Last completed regulatory year | C50: 2015-16 | D50: dms_FinalYear
C54: IF THIS IS AN ABC RIN - make sure the the named range CRY is applied and the named range dms_dollar_nom_UOM is applied
C55: IF THIS IS A RESET RIN - make sure the named ranges CRY and dms_dollar_nom_UOM are NOT present in the workbook
C56: FOR ABC RINS THAT SPAN MULTIPLE YEARS - make sure MultiYear Flag is set and final year entered as required
B58: Source | C58: Regulatory proposal | E58: Please select the correct submission type from the dropdown list.
B59: Data quality (actual, estimate, public, consolidated) | C59: Public | E59: Use Consolidated for Consolidated Confidential version Use Public for Consolidated Public version
B60: Amended RIN submission - amendment reason | C60: .
B61: Submission Date | C61: 31/01/2019 | D61: dms_SubmissionDate | E61: Please enter date this file submitted to AER (dd/mm/yyyy)
B62: EBSS - First application of scheme in forthcoming period? | C62: No
B63: Sector | C63: =INDEX(dms_Sector_List,MATCH(dms_TradingName,dms_TradingName_List)) -> Electricity | D63: dms_Sector | E63: =INDEX(dms_Sector_List,MATCH(dms_TradingName,dms_TradingName_List))
B64: Segment | C64: =INDEX(dms_Segment_List,MATCH(dms_TradingName,dms_TradingName_List)) -> Distribution | D64: dms_Segment | E64: =INDEX(dms_Segment_List,MATCH(dms_TradingName,dms_TradingName_List))
B65: Regulatory Year Ending | C65: =IF(dms_MultiYear_Flag=1,LEFT(dms_Specified_FinalYear,2)&RIGHT(dms_Specified_FinalYear,2),INDEX(dms_RYE_Formula_Result,MATCH(dms_Model,dms_Model_List))) -> 2025 | D65: dms_RYE | E65: =IF(dms_MultiYear_Flag=1,LEFT(dms_Specified_FinalYear,2)&RIGHT(dms_Specified_FinalYear,2),INDEX(dms_RYE_Formula_Result,MATCH(dms_Model,dms_Model_List)))
B66: Reporting Period Type | C66: =INDEX(dms_RPT_List,MATCH(dms_TradingName,dms_TradingName_List)) -> Financial | D66: dms_RPT | E66: =INDEX(dms_RPT_List,MATCH(dms_TradingName,dms_TradingName_List))
B67: Model or RIN Type | C67: Reset | D67: dms_Model | E67: Drop down selection
B68: EB/CA Unit of Measure for Monetary Values | C68: $0s | D68: dms_dollar_nom_UOM | E68: If the cover sheet is attached to an ABC RIN apply the NAMED RANGE to the cell
B69: Security Classification | C69: Public | D69: dms_Classification | E69: Always Public
B70: Jurisdiction | C70: =INDEX(dms_JurisdictionList,MATCH(dms_TradingName,dms_TradingName_List)) -> SA | D70: dms_Jurisdiction | E70: =INDEX(dms_JurisdictionList,MATCH(dms_TradingName,dms_TradingName_List))
B71: FORECAST and MultiYear RINS
B72: CRY-1 (last full calendar year before CRY) | C72: =IF(dms_RPT="financial",VALUE(LEFT(dms_SingleYear_FinalYear_Result,4)),VALUE(LEFT(dms_SingleYear_FinalYear_Result,4)-1)) ->  | D72: dms_Cal_Year_B4_CRY | E72: '=IF(dms_RPT="financial",VALUE(LEFT(dms_SingleYear_FinalYear_Result,4)),VALUE(LEFT(dms_SingleYear_FinalYear_Result,4)-1))
B73: Dollar $ real month | C73: =INDEX(dms_RPTMonth_List,MATCH(dms_TradingName,dms_TradingName_List)) -> June | D73: dms_RPTMonth | E73: =INDEX(dms_RPTMonth_List,MATCH(dms_TradingName,dms_TradingName_List))
B74: Dollar $ real (the last month before the FRCP_y1) | C74: =IF(SUM(dms_SingleYear_Model)>0,CONCATENATE(dms_RPTMonth)&" "&VALUE((LEFT(CRY,2))&RIGHT(CRY,2)),CONCATENATE(dms_RPTMonth)&" "&VALUE((LEFT(dms_CRCP_FinalYear_Result,2)&RIGHT(dms_CRCP_FinalYear_Result,2)))) -> June 2020 | D74: dms_DollarReal | E74: =IF(SUM(dms_SingleYear_Model)>0,CONCATENATE(dms_RPTMonth)&" "&VALUE((LEFT(CRY,2))&RIGHT(CRY,2)),CONCATENATE(dms_RPTMonth)&" "&VALUE((LEFT(dms_CRCP_FinalYear_Result,2)&RIGHT(dms_CRCP_FinalYear_Result,2))))
B75: Dollar $ real previous year (PRCP_y5) | C75: =IF(SUM(dms_SingleYear_Model)>0,CONCATENATE(dms_RPTMonth)&" "&VALUE(((LEFT(CRY,2))&RIGHT(CRY,2))-1),CONCATENATE(dms_RPTMonth)&" "&VALUE(((LEFT(dms_CRCP_FirstYear_Result,2)&RIGHT(dms_CRCP_FirstYear_Result,2))))-1) -> June 2015 | D75: dms_DollarReal_Prev | E75: =IF(SUM(dms_SingleYear_Model)>0,CONCATENATE(dms_RPTMonth)&" "&VALUE(((LEFT(CRY,2))&RIGHT(CRY,2))-1),CONCATENATE(dms_RPTMonth)&" "&VALUE(((LEFT(dms_CRCP_FirstYear_Result,2)&RIGHT(dms_CRCP_FirstYear_Result,2))))-1)
B76: This block works out the various RYE's for ALL RIN types and MODELS
B77: Single Year Model T/F | C77: =IF(dms_Model="EB",1,0) -> 0 | D77: dms_EB
C78: =IF(dms_Model="CA",1,0) -> 0 | D78: dms_CA | E78: =dms_SingleYear_Model
C79: =IF(dms_Model="ARR",1,0) -> 0 | D79: dms_ARR
B80: Is this a single Year RIN? | C80: =IF(SUM(dms_SingleYear_Model)=1,"yes","no") -> no | D80: dms_SingleYearModel | E80: =IF(SUM(dms_SingleYear_Model)=1,"yes","no")
B81: Single Year Final Year Reference | C81: CRY | D81: dms_SingleYear_FinalYear_Ref | E81: This is the reference for EB, CA & ARR RINs
B82: Single Year Final Year Result | C82: =IFERROR(IF(SUM(dms_SingleYear_Model)<>0,(INDIRECT(dms_SingleYear_FinalYear_Ref)),"not a single year RIN"),"CRY not present") -> not a single year RIN | D82: dms_SingleYear_FinalYear_Result | E82: =IFERROR(IF(SUM(dms_SingleYear_Model)<>0,(INDIRECT(dms_SingleYear_FinalYear_Ref)),"not a single year RIN"),"CRY not present")
B83: FRCP length in years | C83: =INDEX(dms_FRCPlength_List,MATCH(dms_TradingName,dms_TradingName_List)) -> 5 | D83: dms_FRCPlength_Num | E83: =INDEX(dms_FRCPlength_List,MATCH(dms_TradingName,dms_TradingName_List))
B84: Multi Year Final Year Reference | C84: =INDEX(dms_FinalYear_List,MATCH(dms_FRCPlength_Num,dms_FRCPlength_Num_List)) -> dms_FRCP_y5 | D84: dms_MultiYear_FinalYear_Ref | E84: =INDEX(dms_FinalYear_List,MATCH(dms_FRCPlength_Num,dms_FRCPlength_Num_List))
B85: Multi Year Final Year Result | C85: =IF(dms_MultiYear_Flag=0,INDIRECT(dms_MultiYear_FinalYear_Ref),dms_Specified_FinalYear) -> 2024-25 | D85: dms_MultiYear_FinalYear_Result | E85: =IF(dms_MultiYear_Flag=0,INDIRECT(dms_MultiYear_FinalYear_Ref),dms_Specified_FinalYear) | I85: Formula errors OK
B86: CRCP length in years | C86: =INDEX(dms_CRCPlength_List,MATCH(dms_TradingName,dms_TradingName_List)) -> 5 | D86: dms_CRCPlength_Num | E86: =INDEX(dms_CRCPlength_List,MATCH(dms_TradingName,dms_TradingName_List))
B87: CRCP Final Year Reference | C87: =INDEX(dms_CFinalYear_List,MATCH(dms_CRCPlength_Num,dms_CRCPlength_Num_List)) -> CRCP_y5 | D87: dms_CRCP_FinalYear_Ref | E87: =INDEX(dms_CFinalYear_List,MATCH(dms_CRCPlength_Num,dms_CRCPlength_Num_List))
B88: CRCP First Year Result | C88: =INDEX(dms_CRCP_years,MATCH(dms_CRCPlength_Num,dms_CRCP_index)) -> 2015-16 | D88: dms_CRCP_FirstYear_Result | E88: =INDEX(dms_CRCP_years,MATCH(dms_CRCPlength_Num,dms_CRCP_index))
B89: CRCP Final Year Result | C89: =IF(dms_MultiYear_Flag=0,(IF(SUM(dms_SingleYear_Model)>0,CRY,dms_CRCP_yZ)),dms_Specified_FinalYear) -> 2019-20 | D89: dms_CRCP_FinalYear_Result | E89: =IF(dms_MultiYear_Flag=0,(IF(SUM(dms_SingleYear_Model)>0,CRY,dms_CRCP_yZ)),dms_Specified_FinalYear)
B90: PTRM/ RFMs
B91: Form of control | C91: =INDEX(dms_FormControl_List,MATCH(dms_TradingName,dms_TradingName_List)) -> Revenue cap | D91: dms_FormControl | E91: =INDEX(dms_FormControl_List,MATCH(dms_TradingName,dms_TradingName_List))
B92: ABC RINS THAT SPAN MULTIPLE YEARS
B93: Is this a multi year ABC RIN? | C93: No
B94: Multiyear EB, CA or ARR? | C94: =IF(dms_MultiYear_ResponseFlag="No",0,1) -> 0 | D94: dms_MultiYear_Flag | E94: This is set from the answer provided above
C95: =IF(dms_MultiYear_Flag=1,FRY,"not a Multiple year submission") -> not a Multiple year submission | D95: dms_Specified_FinalYear | E95: The result here is returned to dms_CRCP_FinalYear_Result if response to Q in C73 is "yes" and dms_MultiYear_Flag is set to 1
B96: Start year for 5.2 in Multi year ABC RINS | C96: =IFERROR(IF(dms_MultiYear_Flag=1,FRY,CRY),"not an ABC") -> 2015-16 | D96: dms_0502_Inst_Year | E96: =IF(dms_MultiYear_Flag=1,FRY,CRY) | G96: For single year RINS this is CRY - multi year RINS need to start a the end of the span of years (ie. FRY)
B97: EB RINS
B98: Calendar Year for table 3.6 data | C98: =IF(dms_RPT="financial",VALUE(LEFT(dms_SingleYear_FinalYear_Result,4)),VALUE(LEFT(dms_SingleYear_FinalYear_Result,4)-1)) ->  | D98: dms_0306_Year | E98: =IF(dms_RPT="financial",VALUE(LEFT(dms_SingleYear_FinalYear_Result,4)),VALUE(LEFT(dms_SingleYear_FinalYear_Result,4)-1))
B99: CA RINS
B100: Find how many rows in tables 6.3 sustained interruptions? | E100: dms_060301_MaxRows only returns a valid value when cover sheet is attached to a CA file
C101: =IF(dms_Model<>"CA","not a CA","Is a CA") -> not a CA | E101: =IF(dms_Model<>"CA","not a CA","Is a CA")
B102: dms_060301_Avg_Duration_Sustained_Int_Values present? | C102: =IFERROR(IF(INDEX(dms_060301_Avg_Duration_Sustained_Int_Values,1,1)<>"","yes","no"),"no") -> no | D102: dms_060301_checkvalue | E102: =IFERROR(IF(INDEX(dms_060301_Avg_Duration_Sustained_Int_Values,1,1)<>"","yes","no"),"no")
C103: =IF(AND(dms_Model="CA",(dms_060301_checkvalue="no")),"error - NR not present","no errors") -> no errors | E103: =IF(AND(dms_Model="CA",(dms_060301_checkvalue="no")),"error - NR not present","no errors")
B104: Table 6.3.1 - last row reference | C104: =IFERROR(IF(dms_Model="CA",LOOKUP(2,1/(dms_060301_Avg_Duration_Sustained_Int_Values<>""),(ROW(dms_060301_Avg_Duration_Sustained_Int_Values))),"not a CA"),"6.3 not present") -> not a CA | D104: dms_060301_LastRow | E104: =IFERROR(IF(dms_Model="CA",LOOKUP(2,1/(dms_060301_Avg_Duration_Sustained_Int_Values<>""),(ROW(dms_060301_Avg_Duration_Sustained_Int_Values))),"not a CA"),"6.3 not present")
B105: Table 6.3.1 - max number rows | C105: =IFERROR(IF(dms_Model="CA",(dms_060301_LastRow-15),"not a CA"),"error") -> not a CA | D105: dms_060301_MaxRows | E105: =IFERROR(IF(dms_Model="CA",(dms_060301_LastRow-15),"not a CA"),"error")
B106: Table 6.6.3 - Public lighting repair - no. business days | C106: =INDEX(dms_663_List,MATCH(dms_TradingName,dms_TradingName_List)) -> 5 | D106: dms_663 | E106: =INDEX(dms_663_List,MATCH(dms_TradingName,dms_TradingName_List))
B107: ARR or RESET RINS
B108: How many rows in tables 6.1 or 6.7? (leap year?) | C108: insert dms_LeapYear NR if required | E108: 'dms_LeapYear is used to determine dms_060701_Max_Rows BUT it is only found on worksheet 6.1 or 6.7 and the date value in the cell is used to determine whether it is a leap year
B109: Is dms_LeapYear named range present? | C109: =IFERROR(IF(dms_LeapYear,"yes"),"no") -> no
B110: Table 6.7.1 - includes a leap year? | C110: =IFERROR(IF(MONTH(DATE(YEAR(dms_LeapYear),2,29))=2,"is a leap year","not a leap year"), "dms_LeapYear not present") -> dms_LeapYear not present | D110: dms_LeapYear_Result | E110: =IFERROR(IF(MONTH(DATE(YEAR(dms_LeapYear),2,29))=2,"is a leap year","not a leap year"),"dms_LeapYear not present")
B111: MaxRows if Reset and leap year | C111: =IF(dms_LeapYear_Result="is a leap year",1827,1826) -> 1826 | D111: dms_060701_Reset_MaxRows | E111: =IF(dms_LeapYear_Result="is a leap year",1827,1826) | H111: number of days present in Reset RIN table
B112: MaxRows if ARR and leap year | C112: =IF(dms_LeapYear_Result="is a leap year",366,365) -> 365 | D112: dms_060701_ARR_MaxRows | E112: =IF(dms_LeapYear_Result="is a leap year",366,365) | H112: number of days present in ARR RIN table
B113: Table 6.7.1 - Max Rows (leap year/ non leap year) | C113: =IF(dms_Model="ARR",dms_060701_ARR_MaxRows,IF(dms_Model="Reset",dms_060701_Reset_MaxRows,"not a relevant RIN type")) -> 1826 | D113: dms_060701_MaxRows | E113: =IF(dms_Model="ARR",dms_060701_ARR_MaxRows,IF(dms_Model="Reset",dms_060701_Reset_MaxRows,"not a relevant RIN type"))
B114: How many columns in 6.7? (4 or 5 feeder categories) | C114: =IF(dms_FifthFeeder_flag_NSP="NO","This NSP has only 4 feeder categories","This NSP has 5 feeder categories") -> This NSP has only 4 feeder categories
B115: Table 6.7.1 - Last column (# of feeder categories > 4) | C115: =IF(dms_FifthFeeder_flag_NSP="NO",10,12) -> 10 | D115: dms_060701_MaxCols | E115: =IF(dms_FifthFeeder_flag_NSP="NO",8,10)
B116: Table 6.7.1 - Number of offset rows | C116: =IF(dms_Model="ARR",15,9) -> 9 | D116: dms_060701_OffsetRows | E116: =IF(dms_Model="ARR",15,9)
B117: Start date for telephone answering in 6.1 or 6.7? | E117: Using 060101 as naming standard not 060701 for start dates
B118: Table 6.1.1 and 6.7.1 - Start Date as Text | C118: =IF(dms_SingleYearModel="yes",(CONCATENATE(IF(LEN(CRY)=4,"1-Jan-","1-Jul-"),LEFT(CRY,4))),(CONCATENATE(IF(LEN(PRCP_y4)=4,"1-Jan-","1-Jul-"),LEFT(PRCP_y4,4)))) -> 1-Jul-2013 | D118: dms_060101_StartDateTxt | E118: =IF(SUM(dms_SingleYear_Model)>1,(CONCATENATE(IF(LEN(CRY)=4,"1-Jan-","1-Jul-"),LEFT(CRY,4))),(CONCATENATE(IF(LEN(CRCP_y4)=4,"1-Jan-","1-Jul-"),LEFT(CRCP_y4,4))))
B119: Table 6.1.1 and 6.7.1 - Start Date as Date Value | C119: =DATEVALUE(dms_060701_StartDateTxt) -> 41456 | D119: dms_060101_StartDateVal | E119: =DATEVALUE(dms_060701_StartDateTxt)
B120: ARRs
B121: How many rows in table 6.8? | C121: insert dms_060801_StartCell NR if required | E121: dms_060801_StartCell is only found on worksheet 6.8 and is used to determine the starting date for the date range
B122: Is dms_060801_StartCell named range present? | C122: yes | E122: =IFERROR(IF((ROW(dms_060801_StartCell)-1)=1,"yes","yes"),"no")
B123: Table 6.8 - Number of offset rows | C123: 12 | D123: dms_0608_OffsetRows | E123: =IFERROR(IF(dms_Model="ARR",(ROW(dms_060801_StartCell)-1),"not an ARR"),"6.8 error")
B124: Table 6.8 - Last row | C124: 6.8 not present | D124: dms_0608_LastRow | E124: =IFERROR(IF(dms_060801_StartCell<>"",IF(dms_Model="ARR",(LOOKUP(2,1/(dms_060801_01_Values<>""),(ROW(dms_060801_01_Values)))),"not an ARR"),0),"6.8 not present")
B125: Table 6.8 - MaxRows | C125: =IFERROR(IF(dms_Model="ARR",(MAX(0,dms_0608_LastRow-dms_0608_OffsetRows)),"not an ARR"),"6.8 not present") -> not an ARR | D125: dms_060801_MaxRows | E125: =IFERROR(IF(dms_Model="ARR",(MAX(0,dms_0608_LastRow-dms_0608_OffsetRows)),"not an ARR"),"6.8 not present")
B126: TNSP RESET RINS
B127: Table 7.9.4 only appears in TNSPs Reset RIN
B128: Table 7.9.4 - first year | C128: =LEFT(PRCP_y3,4) -> 2012 | D128: dms_070904_Start_Year | E128: =LEFT(PRCP_y3,4)
B129: SUBSET FILES
B130: Is this Submission File a Subset File | C130: NO | D130: dms_Partial
B131: MISC
B132: Distribution Determination Reference | C132: =INDEX(dms_DeterminationRef_List,MATCH(dms_TradingName,dms_TradingName_List)) -> 2015-20 Distribution Determination | D132: dms_DeterminationRef
B133: Public lighting NSP? | C133: =INDEX(dms_Public_Lighting_List,MATCH(dms_TradingName,dms_TradingName_List)) -> NO | D133: dms_Public_Lighting | E133: =INDEX(dms_Public_Lighting_List,MATCH(dms_TradingName,dms_TradingName_List))
B134: CBD Feeder for this business | C134: =INDEX(dms_CBD_flag,MATCH(dms_TradingName,dms_TradingName_List)) -> NO | D134: dms_CBD_flag_NSP
B135: Urban Feeder for this business | C135: =INDEX(dms_Urban_flag,MATCH(dms_TradingName,dms_TradingName_List)) -> NO | D135: dms_Urban_flag_NSP
B136: Short rural Feeder for this business | C136: =INDEX(dms_ShortRural_flag,MATCH(dms_TradingName,dms_TradingName_List)) -> YES | D136: dms_ShortRural_flag_NSP
B137: Long rural Feeder for this business | C137: =INDEX(dms_LongRural_flag,MATCH(dms_TradingName,dms_TradingName_List)) -> YES | D137: dms_LongRural_flag_NSP
B138: Fifth Feeder Category (eg. TasNetworks (D)) | C138: =INDEX(dms_FeederType_5_flag,MATCH(dms_TradingName,dms_TradingName_List)) -> NO | D138: dms_FifthFeeder_flag_NSP | E138: =INDEX(dms_FeederType_5_flag,MATCH(dms_TradingName,dms_TradingName_List))
B140: DISCARD FILES
B141: discard this record? | C141: NO | D141: dms_DISCARD | E141: If record is to be discarded from DB set this flag to YES
B143: USES NAMED RANGES FLAG | C143: yes | D143: dms_Defined_Names_Used
B145: REGULATORY YEARS FOR MULTI RYE SUBMISSIONS
B146: Multiple RYE flag | C146: NO | D146: dms_Multi_RYE_flag
C147: Manually specify RYE | D147: Named ranges to apply
C148: 2013 | D148: dms_RYE_01
C149: 2014 | D149: dms_RYE_02
C150: 2015 | D150: dms_RYE_03
C151: 2016 | D151: dms_RYE_04
C152: 2017 | D152: dms_RYE_05
C153: 2018 | D153: dms_RYE_06
C154: 2019 | D154: dms_RYE_07
C155: 2020 | D155: dms_RYE_08
C156: 2021 | D156: dms_RYE_09

Sheet 7.6 Indicative bill impact
B1: =SheetHeader -> REGULATORY REPORTING STATEMENT
B2: =dms_TradingName -> SA Power Networks
B3: =dms_Reg_Year_Span -> 2020-21 to 2024-25
B4: 7.6 INDICATIVE IMPACT ON DISTRIBUTION CHARGES & ELECTRICITY BILLS
B6: Instructions
B7: Australian Distribution Co. is required to populate all input cells (yellow) in table 7.6.1 presented below. Small business customer is a business customer that consumes < 100 MWh p.a.
B9: 7.6.1 - INDICATIVE IMPACT OF THE REGULATORY PROPOSAL ON THE AVERAGE ELECTRICITY BILLS
B11: 7.6.1.1 - PARAMETERS BY TARIFF TYPE
D12: Single Rate Tariff | E12: TOU Tariff
B13: A. ANNUAL USAGE PER CUSTOMER
D14: kWh
D15: =CRCP_y5 -> 2019-20 | E15: =CRCP_y5 -> 2019-20
B16: Residential customer | D16: 3795 | E16: 5703
B17: Small business customer | D17: 8812 | E17: 18814
C18: Source: | D18: SAPN Sales Forecasts by Tariff | E18: SAPN Sales Forecasts by Tariff
B21: B. TYPICAL ANNUAL ELECTRICITY BILL
D22: Single Rate Tariff | E22: TOU Tariff
C23: Tariff description | D23: =CONCATENATE("$ real, ", dms_DollarReal) -> $ real, June 2020
D24: =CRCP_y5 -> 2019-20 | E24: =CRCP_y5 -> 2019-20
B25: Residential customer | C25: AGL Residential Essentials | D25: 1610 | E25: 1980
B26: Small business customer | C26: AGL Business Essentials | D26: 3387 | E26: 5816
C27: Source: | D27: AGL published price 2018/19, assumes no energy price change in 19/20 apart from Network price | E27: AGL published price 2018/19, assumes no energy price change in 19/20 apart from Network price
B30: C. DISTRIBUTION COSTS AS A PROPORTION OF A TYPICAL CUSTOMER'S ELECTRICITY BILL
D31: Single Rate Tariff | E31: TOU Tariff
D32: Proportion (%)
D33: =CRCP_y5 -> 2019-20 | E33: =CRCP_y5 -> 2019-20
B34: Residential customer | D34: 0.3398732893 | E34: 0.3216535613
B35: Small business customer | D35: 0.3209968708 | E35: 0.3211578101
C36: Source: | D36: SAPN Analysis | E36: SAPN Analysis
B39: D. DISTRIBUTION BILL COMPONENT
D40: Single Rate Tariff | E40: TOU Tariff
D41: =CONCATENATE("$ real, ", dms_DollarReal) -> $ real, June 2020
D42: =CRCP_y5 -> 2019-20 | E42: =CRCP_y5 -> 2019-20
B43: Residential customer | D43: =D34*D25 -> 547.1959958 | E43: =E34*E25 -> 636.8740514
B44: Small business customer | D44: =D35*D26 -> 1087.216401 | E44: =E35*E26 -> 1867.853823
B47: 7.6.1.2 - INDICATIVE ANNUAL AVERAGE DISTRIBUTION PRICE IMPACT
C48: Units | D48: =CRCP_y5 -> 2019-20 | E48: =FRCP_y1 -> 2020-21 | F48: =FRCP_y2 -> 2021-22 | G48: =FRCP_y3 -> 2022-23 | H48: =FRCP_y4 -> 2023-24 | I48: =FRCP_y5 -> 2024-25 | J48: Average
B49: Forecast smoothed revenues ($ nominal) | C49: $ nominal | D49: 858340641 | E49: 802271443 | F49: 822087547 | G49: 842393110 | H49: 863200219 | I49: 884521265
B50: Forecast smoothed revenues ($ real) | C50: =CONCATENATE("$ real , ",dms_DollarReal) -> $ real , June 2020 | D50: 858340641 | E50: 782932997 | F50: 782932997 | G50: 782932997 | H50: 782932997 | I50: 782932997
B52: Energy delivered forecast (MWh) | C52: MWh | D52: 9693242 | E52: 9639301 | F52: 9664073 | G52: 9687391 | H52: 9737103 | I52: 9819404
B54: Annual price path ($ nominal) | C54: $/MWh, nominal | D54: =+D49/D52 -> 88.55041904 | E54: 83.22921372 | F54: 85.06636353 | G54: 86.95768654 | H54: 88.65062011 | I54: 90.07891569
B55: Annual price path ($ real) | C55: =CONCATENATE("$/MWh, ",dms_DollarReal) -> $/MWh, June 2020 | D55: =+D50/D52 -> 88.55041904 | E55: 81.22300538 | F55: 81.01480577 | G55: 80.81979937 | H55: 80.40718035 | I55: 79.73325031
B57: Annual price path (per cent, nominal) | C57: per cent, nominal | E57: =+E54/D54-1 -> -0.06009237885 | F57: 0.02207337703 | G57: 0.02223350023 | H57: 0.0194684752 | I57: 0.01611151255 | J57: =(I54/D54)^(1/5)-1 -> 0.003428670604
B58: Annual price path (per cent, real) | C58: =CONCATENATE("per cent , ",dms_DollarReal) -> per cent , June 2020 | E58: -0.08274849223 | F58: -0.002563308452 | G58: -0.002407046438 | H58: -0.005105419959 | I58: -0.008381465922 | J58: =(I55/D55)^(1/5)-1 -> -0.02075859234
B61: 7.6.1.3 - DISTRIBUTION BILL COMPONENT
B62: Residential customer
D63: =CRCP_y5 -> 2019-20 | E63: =FRCP_y1 -> 2020-21 | F63: =FRCP_y2 -> 2021-22 | G63: =FRCP_y3 -> 2022-23 | H63: =FRCP_y4 -> 2023-24 | I63: =FRCP_y5 -> 2024-25 | J63: =CONCATENATE("Total ",FRCP_y1," to ", IF(SUM(dms_SingleYear_Model)>0,"",dms_MultiYear_FinalYear_Result)) -> Total 2020-21 to 2024-25 | K63: Annual average | L63: Annual impact on customer bill (%)
D64: $ nominal
B65: Regulated tariff | D65: =D43 -> 547.1959958 | E65: =+D65*(1+E$57) -> 514.3136867 | F65: =+E65*(1+F$57) -> 525.6663266 | G65: =+F65*(1+G$57) -> 537.353729 | H65: =+G65*(1+H$57) -> 547.8151868 | I65: =+H65*(1+I$57) -> 556.641318 | J65: =+SUM(E65:I65) -> 2681.790247 | K65: =+AVERAGE(E65:I65) -> 536.3580494
B66: Annual change | E66: =+E65-D65 -> -32.88230909 | F66: =+F65-E65 -> 11.35263992 | G66: =+G65-F65 -> 11.68740239 | H66: =+H65-G65 -> 10.46145775 | I66: =+I65-H65 -> 8.826131256 | J66: =+SUM(E66:I66) -> 9.445322232 | K66: =+AVERAGE(E66:I66) -> 1.889064446 | L66: =+K66/D25 -> 0.001173331954
D67: =CONCATENATE("$ real , ",dms_DollarReal) -> $ real , June 2020
B68: Regulated tariff | D68: =D43 -> 547.1959958 | E68: =+D68*(1+E$58) -> 501.9163522 | F68: =+E68*(1+F$58) -> 500.6297858 | G68: =+F68*(1+G$58) -> 499.4247466 | H68: =+G68*(1+H$58) -> 496.8749736 | I68: =+H68*(1+I$58) -> 492.7104329 | J68: =+SUM(E68:I68) -> 2491.556291 | K68: =+AVERAGE(E68:I68) -> 498.3112582
B69: Annual change | E69: =+E68-D68 -> -45.27964361 | F69: =+F68-E68 -> -1.286566428 | G69: =+G68-F68 -> -1.205039143 | H69: =+H68-G68 -> -2.549773069 | I69: =+I68-H68 -> -4.164540658 | J69: =+SUM(E69:I69) -> -54.48556291 | K69: =+AVERAGE(E69:I69) -> -10.89711258 | L69: =+K69/D25 -> -0.006768392908
B71: Small Business customer
D72: =CRCP_y5 -> 2019-20 | E72: =FRCP_y1 -> 2020-21 | F72: =FRCP_y2 -> 2021-22 | G72: =FRCP_y3 -> 2022-23 | H72: =FRCP_y4 -> 2023-24 | I72: =FRCP_y5 -> 2024-25 | J72: =CONCATENATE("Total ",FRCP_y1," to ", IF(SUM(dms_SingleYear_Model)>0,"",dms_MultiYear_FinalYear_Result)) -> Total 2020-21 to 2024-25 | K72: Annual average | L72: Annual impact on customer bill (%)
D73: $ nominal
B74: Regulated tariff | D74: =D44 -> 1087.216401 | E74: =+D74*(1+E$57) -> 1021.882981 | F74: =+E74*(1+F$57) -> 1044.43939 | G74: =+F74*(1+G$57) -> 1067.660933 | H74: =+G74*(1+H$57) -> 1088.446664 | I74: =+H74*(1+I$57) -> 1105.983186 | J74: =+SUM(E74:I74) -> 5328.413153 | K74: =+AVERAGE(E74:I74) -> 1065.682631
B75: Annual change | E75: =+E74-D74 -> -65.33341988 | F75: =+F74-E74 -> 22.55640833 | G75: =+G74-F74 -> 23.22154341 | H75: =+H74-G74 -> 20.7857304 | I75: =+I74-H74 -> 17.53652208 | J75: =+SUM(E75:I75) -> 18.76678434 | K75: =+AVERAGE(E75:I75) -> 3.753356868 | L75: =+K75/D26 -> 0.001108165594
D76: =CONCATENATE("$ real , ",dms_DollarReal) -> $ real , June 2020
B77: Regulated tariff | D77: =D44 -> 1087.216401 | E77: =+D77*(1+E$58) -> 997.2508833 | F77: =+E77*(1+F$58) -> 994.6946217 | G77: =+F77*(1+G$58) -> 992.3003456 | H77: =+G77*(1+H$58) -> 987.2342356 | I77: =+H77*(1+I$58) -> 978.9597655 | J77: =+SUM(E77:I77) -> 4950.439852 | K77: =+AVERAGE(E77:I77) -> 990.0879703
B78: Annual change | E78: =+E77-D77 -> -89.96551794 | F78: =+F77-E77 -> -2.556261618 | G78: =+G77-F77 -> -2.394276146 | H78: =+H77-G77 -> -5.06610999 | I78: =+I77-H77 -> -8.274470102 | J78: =+SUM(E78:I78) -> -108.2566358 | K78: =+AVERAGE(E78:I78) -> -21.65132716 | L78: =+K78/D26 -> -0.006392479232
